Service Area,Expense Type,Date,Transaction Number,Amount,Supplier
Structural Maintenance Other Roads,Highways Minor Works,2010-04-19,5000072906,936.71,Aggregate Industries  Cis [Sb]
Structural Maintenance Other Roads,Highways Minor Works,2010-04-19,5000072973,615.5,Williams Assoc [Sb] Cis
Structural Maintenance Other Roads,Highways Minor Works,2010-04-20,5000073083,502.7,Mountjoy Ltd [Sb]
Structural Maintenance Other Roads,Highways Minor Works,2010-04-20,5000073080,792.46,Mountjoy Ltd [Sb]
Structural Maintenance Other Roads,Highways Minor Works,2010-04-20,5000073076,859.97,J A Dempsey Civil Eng Ltd [Sb]
Structural Maintenance Other Roads,Highways Minor Works,2010-04-21,5000073511,713.32,J A Dempsey Civil Eng Ltd [Sb]
Structural Maintenance Other Roads,Highways Minor Works,2010-04-21,5000073499,737.75,J A Dempsey Civil Eng Ltd [Sb]
Structural Maintenance Other Roads,Highways Minor Works,2010-04-21,5000073498,1400.43,J A Dempsey Civil Eng Ltd [Sb]
Structural Maintenance Other Roads,Highways Minor Works,2010-04-22,5000073842,1263.06,Mountjoy Ltd [Sb]
Structural Maintenance Other Roads,Highways Minor Works,2010-04-22,5105680397,972.95,J A Dempsey Civil Eng Ltd [Sb]
Structural Maintenance Other Roads,Highways Minor Works,2010-04-22,5000073878,533.57,Aggregate Industries  Cis [Sb]
Structural Maintenance Other Roads,Highways Minor Works,2010-04-28,5000075203,621.28,J A Dempsey Civil Eng Ltd [Sb]
Structural Maintenance Other Roads,Highways Minor Works,2010-05-04,5000075781,550.91,Mountjoy Ltd [Sb]
Structural Maintenance Other Roads,Highways Minor Works,2010-05-04,5000075968,1430.78,Mountjoy Ltd [Sb]
Structural Maintenance Other Roads,Highways Minor Works,2010-05-04,5000075940,524.27,J A Dempsey Civil Eng Ltd [Sb]
Structural Maintenance Other Roads,Highways Minor Works,2010-05-04,5000075900,654.88,Aggregate Industries  Cis [Sb]
Structural Maintenance Other Roads,Highways Minor Works,2010-05-05,5000076138,1530.7,J A Dempsey Civil Eng Ltd [Sb]
Structural Maintenance Other Roads,Highways Minor Works,2010-05-06,5000076539,516.62,J A Dempsey Civil Eng Ltd [Sb]
Structural Maintenance Other Roads,Highways Minor Works,2010-05-06,5000076557,584.79,J A Dempsey Civil Eng Ltd [Sb]
Structural Maintenance Other Roads,Highways Minor Works,2010-05-06,5000076504,1855.78,J A Dempsey Civil Eng Ltd [Sb]
Structural Maintenance Other Roads,Highways Minor Works,2010-05-07,5000076730,538.69,Williams Assoc [Sb] Cis
Structural Maintenance Other Roads,Highways Minor Works,2010-05-10,5000076887,618.71,Mountjoy Ltd [Sb]
Structural Maintenance Other Roads,Highways Minor Works,2010-05-10,5000077025,639.27,J A Dempsey Civil Eng Ltd [Sb]
Structural Maintenance Other Roads,Highways Minor Works,2010-05-11,5000077480,922.75,J A Dempsey Civil Eng Ltd [Sb]
Structural Maintenance Other Roads,Highways Minor Works,2010-05-11,5000077251,1382.1,J A Dempsey Civil Eng Ltd [Sb]
Structural Maintenance Other Roads,Highways Minor Works,2010-05-11,5000077248,4811.46,J A Dempsey Civil Eng Ltd [Sb]
Structural Maintenance Other Roads,Highways Minor Works,2010-05-17,5000078276,612.86,J A Dempsey Civil Eng Ltd [Sb]
Structural Maintenance Other Roads,Highways Minor Works,2010-05-18,5000078837,546.73,Mountjoy Ltd [Sb]
Structural Maintenance Other Roads,Highways Minor Works,2010-05-18,5000078710,3345.02,J A Dempsey Civil Eng Ltd [Sb]
Structural Maintenance Other Roads,Highways Minor Works,2010-05-19,5105686478,1455.0,J A Dempsey Civil Eng Ltd [Sb]
Structural Maintenance Other Roads,Highways Minor Works,2010-05-19,5105686474,1573.0,J A Dempsey Civil Eng Ltd [Sb]
Structural Maintenance Other Roads,Highways Minor Works,2010-05-19,5105686476,1651.0,J A Dempsey Civil Eng Ltd [Sb]
Structural Maintenance Other Roads,Highways Minor Works,2010-05-19,5105686470,1718.0,J A Dempsey Civil Eng Ltd [Sb]
Structural Maintenance Other Roads,Highways Minor Works,2010-05-19,5105686477,1795.0,J A Dempsey Civil Eng Ltd [Sb]
Structural Maintenance Other Roads,Highways Minor Works,2010-05-24,5000079730,800.0,Groundsell Contracting Ltd
Structural Maintenance Other Roads,Highways Minor Works,2010-05-24,5000079913,1266.71,Mountjoy Ltd [Sb]
Structural Maintenance Other Roads,Highways Minor Works,2010-05-24,5000079938,585.44,J A Dempsey Civil Eng Ltd [Sb]
Structural Maintenance Other Roads,Highways Minor Works,2010-05-24,5000079950,1168.8,J A Dempsey Civil Eng Ltd [Sb]
Structural Maintenance Other Roads,Highways Minor Works,2010-05-24,5000079972,704.0,Williams Assoc [Sb] Cis
Structural Maintenance Other Roads,Highways Minor Works,2010-05-25,5000080284,1600.0,Vertical Technology
Structural Maintenance Other Roads,Highways Minor Works,2010-05-28,5000080886,704.0,Williams Assoc [Sb] Cis
Structural Maintenance Other Roads,Highways Minor Works,2010-06-01,5000081125,574.18,J A Dempsey Civil Eng Ltd [Sb]
Structural Maintenance Other Roads,Highways Minor Works,2010-06-01,5000081410,2318.77,J A Dempsey Civil Eng Ltd [Sb]
Structural Maintenance Other Roads,Highways Minor Works,2010-06-02,5000081428,523.51,J A Dempsey Civil Eng Ltd [Sb]
Structural Maintenance Other Roads,Highways Minor Works,2010-06-02,5000081441,1099.91,J A Dempsey Civil Eng Ltd [Sb]
Structural Maintenance Other Roads,Highways Minor Works,2010-06-02,5000081429,1162.84,J A Dempsey Civil Eng Ltd [Sb]
Structural Maintenance Other Roads,Highways Minor Works,2010-06-02,5105689784,1651.0,J A Dempsey Civil Eng Ltd [Sb]
Structural Maintenance Other Roads,Highways Minor Works,2010-06-02,5000081440,1725.5,J A Dempsey Civil Eng Ltd [Sb]
Structural Maintenance Other Roads,Highways Minor Works,2010-06-02,5000081582,4828.49,J A Dempsey Civil Eng Ltd [Sb]
Structural Maintenance Other Roads,Highways Minor Works,2010-06-07,5000082291,1648.41,Williams Assoc [Sb] Cis
Structural Maintenance Other Roads,Highways Minor Works,2010-06-08,5000082534,549.08,Mountjoy Ltd [Sb]
Structural Maintenance Other Roads,Highways Minor Works,2010-06-08,5000082510,560.59,Mountjoy Ltd [Sb]
Structural Maintenance Other Roads,Highways Minor Works,2010-06-08,5000082597,577.53,J A Dempsey Civil Eng Ltd [Sb]
Structural Maintenance Other Roads,Highways Minor Works,2010-06-08,5000082713,804.56,J A Dempsey Civil Eng Ltd [Sb]
Structural Maintenance Other Roads,Highways Minor Works,2010-06-11,5000083759,667.44,Continental Landscapes Ltd
Structural Maintenance Other Roads,Highways Minor Works,2010-06-11,5000083758,3345.81,J A Dempsey Civil Eng Ltd [Sb]
Structural Maintenance Other Roads,Highways Minor Works,2010-06-12,5105692404,1371.0,J A Dempsey Civil Eng Ltd [Sb]
Structural Maintenance Other Roads,Highways Minor Works,2010-06-12,5105692403,1890.0,J A Dempsey Civil Eng Ltd [Sb]
Structural Maintenance Other Roads,Highways Minor Works,2010-06-14,5000084051,546.0,Mountjoy Ltd [Sb]
Structural Maintenance Other Roads,Highways Minor Works,2010-06-15,5000084317,930.72,Mountjoy Ltd [Sb]
Structural Maintenance Other Roads,Highways Minor Works,2010-06-16,5000084755,1116.33,Mountjoy Ltd [Sb]
Structural Maintenance Other Roads,Highways Minor Works,2010-06-16,5000084762,794.95,J A Dempsey Civil Eng Ltd [Sb]
Structural Maintenance Other Roads,Highways Minor Works,2010-06-21,5000085373,502.33,Mountjoy Ltd [Sb]
Structural Maintenance Other Roads,Highways Minor Works,2010-06-21,5000085370,591.31,Mountjoy Ltd [Sb]
Structural Maintenance Other Roads,Highways Minor Works,2010-06-21,5000085535,677.95,J A Dempsey Civil Eng Ltd [Sb]
Structural Maintenance Other Roads,Highways Minor Works,2010-06-21,5000085401,747.22,J A Dempsey Civil Eng Ltd [Sb]
Structural Maintenance Other Roads,Highways Minor Works,2010-06-22,5105694725,1776.0,J A Dempsey Civil Eng Ltd [Sb]
Structural Maintenance Other Roads,Highways Minor Works,2010-06-23,5000086079,673.25,J A Dempsey Civil Eng Ltd [Sb]
Structural Maintenance Other Roads,Highways Minor Works,2010-06-23,5000086110,1578.58,J A Dempsey Civil Eng Ltd [Sb]
Structural Maintenance Other Roads,Highways Minor Works,2010-06-30,5000087399,519.26,Continental Landscapes Ltd
Structural Maintenance Other Roads,Highways Minor Works,2010-06-30,5000087486,896.08,J A Dempsey Civil Eng Ltd [Sb]
Structural Maintenance Other Roads,Highways Minor Works,2010-07-01,5000087722,2396.0,D A R E S Ltd
Structural Maintenance Other Roads,Highways Minor Works,2010-07-01,5000087646,634.1,J A Dempsey Civil Eng Ltd [Sb]
Structural Maintenance Other Roads,Highways Minor Works,2010-07-07,5000088872,624.6,J A Dempsey Civil Eng Ltd [Sb]
Structural Maintenance Other Roads,Highways Minor Works,2010-07-12,5000089551,671.78,J A Dempsey Civil Eng Ltd [Sb]
Structural Maintenance Other Roads,Highways Minor Works,2010-07-12,5000089550,751.58,J A Dempsey Civil Eng Ltd [Sb]
Structural Maintenance Other Roads,Highways Minor Works,2010-07-13,5000089719,-502.33,Mountjoy Ltd [Sb]
Structural Maintenance Other Roads,Highways Minor Works,2010-07-13,5000089720,502.33,Mountjoy Ltd [Sb]
Structural Maintenance Other Roads,Highways Minor Works,2010-07-13,5000089855,588.26,J A Dempsey Civil Eng Ltd [Sb]
Structural Maintenance Other Roads,Highways Minor Works,2010-07-13,5000089803,639.59,J A Dempsey Civil Eng Ltd [Sb]
Structural Maintenance Other Roads,Highways Minor Works,2010-07-14,5000090090,2250.99,J A Dempsey Civil Eng Ltd Cis Invo
Structural Maintenance Other Roads,Highways Minor Works,2010-07-14,5000090081,1637.03,J A Dempsey Civil Eng Ltd [Sb]
Structural Maintenance Other Roads,Highways Minor Works,2010-07-16,5000090603,6041.4,J A Dempsey Civil Eng Ltd [Sb]
Structural Maintenance Other Roads,Highways Minor Works,2010-07-16,5000090629,595.57,Aggregate Industries  Cis [Sb]
Structural Maintenance Other Roads,Highways Minor Works,2010-07-16,5000090653,1403.74,Aggregate Industries  Cis [Sb]
Structural Maintenance Other Roads,Highways Minor Works,2010-07-17,5105600154,1458.0,J A Dempsey Civil Eng Ltd [Sb]
Structural Maintenance Other Roads,Highways Minor Works,2010-07-17,5105600153,1586.0,J A Dempsey Civil Eng Ltd [Sb]
Structural Maintenance Other Roads,Highways Minor Works,2010-07-17,5105600155,1616.0,J A Dempsey Civil Eng Ltd [Sb]
Structural Maintenance Other Roads,Highways Minor Works,2010-07-19,5000090962,514.6,J A Dempsey Civil Eng Ltd [Sb]
Structural Maintenance Other Roads,Highways Minor Works,2010-07-19,5000090952,714.97,J A Dempsey Civil Eng Ltd [Sb]
Structural Maintenance Other Roads,Highways Minor Works,2010-07-19,5000090960,819.65,J A Dempsey Civil Eng Ltd [Sb]
Structural Maintenance Other Roads,Highways Minor Works,2010-07-19,5000090959,859.98,J A Dempsey Civil Eng Ltd [Sb]
Structural Maintenance Other Roads,Highways Minor Works,2010-07-20,5000091102,784.9,J A Dempsey Civil Eng Ltd [Sb]
Structural Maintenance Other Roads,Highways Minor Works,2010-07-20,5000091105,703.88,Aggregate Industries  Cis [Sb]
Structural Maintenance Other Roads,Highways Minor Works,2010-07-26,5000092364,546.51,J A Dempsey Civil Eng Ltd [Sb]
Structural Maintenance Other Roads,Highways Minor Works,2010-07-26,5000092251,1296.05,J A Dempsey Civil Eng Ltd [Sb]
Structural Maintenance Other Roads,Highways Minor Works,2010-07-27,5000092884,527.7,J A Dempsey Civil Eng Ltd [Sb]
Structural Maintenance Other Roads,Highways Minor Works,2010-07-27,5000092537,2779.98,J A Dempsey Civil Eng Ltd [Sb]
Structural Maintenance Other Roads,Highways Minor Works,2010-07-27,5000092527,1079.17,Aggregate Industries  Cis [Sb]
Structural Maintenance Other Roads,Highways Minor Works,2010-07-27,5000092543,3959.32,Williams Assoc [Sb] Cis
Structural Maintenance Other Roads,Highways Minor Works,2010-07-28,5000092937,1392.95,J A Dempsey Civil Eng Ltd [Sb]
Structural Maintenance Other Roads,Highways Minor Works,2010-07-30,5000093460,2298.44,J A Dempsey Civil Eng Ltd [Sb]
Structural Maintenance Other Roads,Highways Minor Works,2010-08-02,5000093743,539.94,J A Dempsey Civil Eng Ltd [Sb]
Structural Maintenance Other Roads,Highways Minor Works,2010-08-02,5000093806,613.15,Aggregate Industries  Cis [Sb]
Structural Maintenance Other Roads,Highways Minor Works,2010-08-03,5000094077,608.0,J A Dempsey Civil Eng Ltd [Sb]
Structural Maintenance Other Roads,Highways Minor Works,2010-08-03,5000093926,768.35,J A Dempsey Civil Eng Ltd [Sb]
Structural Maintenance Other Roads,Highways Minor Works,2010-08-03,5000094071,769.3,J A Dempsey Civil Eng Ltd [Sb]
Structural Maintenance Other Roads,Highways Minor Works,2010-08-03,5000094090,925.65,J A Dempsey Civil Eng Ltd [Sb]
Structural Maintenance Other Roads,Highways Minor Works,2010-08-03,5000094083,1223.21,J A Dempsey Civil Eng Ltd [Sb]
Structural Maintenance Other Roads,Highways Minor Works,2010-08-03,5105603823,1616.0,J A Dempsey Civil Eng Ltd [Sb]
Structural Maintenance Other Roads,Highways Minor Works,2010-08-03,5105603822,1674.0,J A Dempsey Civil Eng Ltd [Sb]
Structural Maintenance Other Roads,Highways Minor Works,2010-08-03,5105603824,1736.0,J A Dempsey Civil Eng Ltd [Sb]
Structural Maintenance Other Roads,Highways Minor Works,2010-08-03,5105603821,1750.0,J A Dempsey Civil Eng Ltd [Sb]
Structural Maintenance Other Roads,Highways Minor Works,2010-08-03,5000094088,2201.75,J A Dempsey Civil Eng Ltd [Sb]
Structural Maintenance Other Roads,Highways Minor Works,2010-08-03,5000094087,2276.57,J A Dempsey Civil Eng Ltd [Sb]
Structural Maintenance Other Roads,Highways Minor Works,2010-08-04,5000094261,898.29,J A Dempsey Civil Eng Ltd [Sb]
Structural Maintenance Other Roads,Highways Minor Works,2010-08-04,5000094265,719.77,Aggregate Industries  Cis [Sb]
Structural Maintenance Other Roads,Highways Minor Works,2010-08-10,5000095178,642.7,Mountjoy Ltd [Sb]
Structural Maintenance Other Roads,Highways Minor Works,2010-08-10,5000095276,580.06,J A Dempsey Civil Eng Ltd [Sb]
Structural Maintenance Other Roads,Highways Minor Works,2010-08-10,5000095270,986.4,J A Dempsey Civil Eng Ltd [Sb]
Structural Maintenance Other Roads,Highways Minor Works,2010-08-10,5000095284,1256.0,J A Dempsey Civil Eng Ltd [Sb]
Structural Maintenance Other Roads,Highways Minor Works,2010-08-10,5000095218,1602.2,J A Dempsey Civil Eng Ltd [Sb]
Structural Maintenance Other Roads,Highways Minor Works,2010-08-10,5000095169,557.51,Aggregate Industries  Cis [Sb]
Structural Maintenance Other Roads,Highways Minor Works,2010-08-11,5000095414,1075.79,J A Dempsey Civil Eng Ltd [Sb]
Structural Maintenance Other Roads,Highways Minor Works,2010-08-11,5000095412,1133.93,J A Dempsey Civil Eng Ltd [Sb]
Structural Maintenance Other Roads,Highways Minor Works,2010-08-11,5000095406,1261.64,J A Dempsey Civil Eng Ltd [Sb]
Structural Maintenance Other Roads,Highways Minor Works,2010-08-11,5000095544,1421.9,J A Dempsey Civil Eng Ltd [Sb]
Structural Maintenance Other Roads,Highways Minor Works,2010-08-16,5000096172,654.48,J A Dempsey Civil Eng Non Cis [Sb]
Structural Maintenance Other Roads,Highways Minor Works,2010-08-16,5000096178,1169.51,J A Dempsey Civil Eng Ltd [Sb]
Structural Maintenance Other Roads,Highways Minor Works,2010-08-17,5000096283,508.73,J A Dempsey Civil Eng Ltd [Sb]
Structural Maintenance Other Roads,Highways Minor Works,2010-08-17,5000096291,863.57,J A Dempsey Civil Eng Ltd [Sb]
Structural Maintenance Other Roads,Highways Minor Works,2010-08-17,5000096290,898.74,J A Dempsey Civil Eng Ltd [Sb]
Structural Maintenance Other Roads,Highways Minor Works,2010-08-17,5000096289,940.4,J A Dempsey Civil Eng Ltd [Sb]
Structural Maintenance Other Roads,Highways Minor Works,2010-08-17,5000096294,948.02,J A Dempsey Civil Eng Ltd [Sb]
Structural Maintenance Other Roads,Highways Minor Works,2010-08-17,5105606660,1847.0,J A Dempsey Civil Eng Ltd [Sb]
Structural Maintenance Other Roads,Highways Minor Works,2010-08-18,5000096684,520.67,J A Dempsey Civil Eng Ltd [Sb]
Structural Maintenance Other Roads,Highways Minor Works,2010-08-18,5000096689,1890.5,J A Dempsey Civil Eng Ltd [Sb]
Structural Maintenance Other Roads,Highways Minor Works,2010-08-19,5105607432,1813.0,J A Dempsey Civil Eng Ltd [Sb]
Structural Maintenance Other Roads,Highways Minor Works,2010-08-20,5000097021,864.25,J A Dempsey Civil Eng Ltd [Sb]
Structural Maintenance Other Roads,Highways Minor Works,2010-08-21,5105607860,1784.0,J A Dempsey Civil Eng Ltd [Sb]
Structural Maintenance Other Roads,Highways Minor Works,2010-08-21,5105607861,1801.0,J A Dempsey Civil Eng Ltd [Sb]
Structural Maintenance Other Roads,Highways Minor Works,2010-08-21,5105607862,1939.0,J A Dempsey Civil Eng Ltd [Sb]
Structural Maintenance Other Roads,Highways Minor Works,2010-08-25,5000097753,549.0,H J Bennett Ltd
Structural Maintenance Other Roads,Highways Minor Works,2010-08-25,5000097901,694.33,J A Dempsey Civil Eng Ltd [Sb]
Structural Maintenance Other Roads,Highways Minor Works,2010-08-27,5105609380,544.89,J A Dempsey Civil Eng Ltd [Sb]
Structural Maintenance Other Roads,Highways Minor Works,2010-08-31,5000098448,550.92,Mountjoy Ltd [Sb]
Structural Maintenance Other Roads,Highways Minor Works,2010-09-01,5000098676,1088.27,Mountjoy Ltd [Sb]
Structural Maintenance Other Roads,Highways Minor Works,2010-09-02,5000098959,-1088.27,Mountjoy Ltd [Sb]
Structural Maintenance Other Roads,Highways Minor Works,2010-09-02,5000098972,1088.27,Mountjoy Ltd [Sb]
Structural Maintenance Other Roads,Highways Minor Works,2010-09-02,5000098969,969.29,J A Dempsey Civil Eng Ltd [Sb]
Structural Maintenance Other Roads,Highways Minor Works,2010-09-07,5000099761,894.5,J A Dempsey Civil Eng Ltd [Sb]
Structural Maintenance Other Roads,Highways Minor Works,2010-09-08,5000100159,1075.87,J A Dempsey Civil Eng Ltd [Sb]
Structural Maintenance Other Roads,Highways Minor Works,2010-09-08,5000100160,1188.17,J A Dempsey Civil Eng Ltd [Sb]
Structural Maintenance Other Roads,Highways Minor Works,2010-09-08,5000100229,1192.59,J A Dempsey Civil Eng Ltd [Sb]
Structural Maintenance Other Roads,Highways Minor Works,2010-09-08,5000100238,1349.35,J A Dempsey Civil Eng Ltd [Sb]
Structural Maintenance Other Roads,Highways Minor Works,2010-09-08,5000100227,1503.49,J A Dempsey Civil Eng Ltd [Sb]
Structural Maintenance Other Roads,Highways Minor Works,2010-09-08,5000100218,3288.67,J A Dempsey Civil Eng Ltd [Sb]
Structural Maintenance Other Roads,Highways Minor Works,2010-09-08,5000100201,1094.61,Aggregate Industries  Cis [Sb]
Structural Maintenance Other Roads,Highways Minor Works,2010-09-08,5000100173,1814.66,Aggregate Industries  Cis [Sb]
Structural Maintenance Other Roads,Highways Minor Works,2010-09-14,5000101097,541.99,J A Dempsey Civil Eng Ltd [Sb]
Structural Maintenance Other Roads,Highways Minor Works,2010-09-14,5000101102,641.17,J A Dempsey Civil Eng Ltd [Sb]
Structural Maintenance Other Roads,Highways Minor Works,2010-09-14,5000101095,666.46,J A Dempsey Civil Eng Ltd [Sb]
Structural Maintenance Other Roads,Highways Minor Works,2010-09-14,5000101112,730.93,J A Dempsey Civil Eng Ltd [Sb]
Structural Maintenance Other Roads,Highways Minor Works,2010-09-14,5000101226,864.52,J A Dempsey Civil Eng Ltd [Sb]
Structural Maintenance Other Roads,Highways Minor Works,2010-09-14,5000101096,929.11,J A Dempsey Civil Eng Ltd [Sb]
Structural Maintenance Other Roads,Highways Minor Works,2010-09-14,5105613666,1776.0,J A Dempsey Civil Eng Ltd [Sb]
Structural Maintenance Other Roads,Highways Minor Works,2010-09-15,5000101281,889.22,Mountjoy Ltd [Sb]
Structural Maintenance Other Roads,Highways Minor Works,2010-09-15,5000101286,990.21,Mountjoy Ltd [Sb]
Structural Maintenance Other Roads,Highways Minor Works,2010-09-15,5000101278,1354.05,Mountjoy Ltd [Sb]
Structural Maintenance Other Roads,Highways Minor Works,2010-09-16,5000101570,555.55,J A Dempsey Civil Eng Ltd [Sb]
Structural Maintenance Other Roads,Highways Minor Works,2010-09-16,5000101573,832.23,J A Dempsey Civil Eng Ltd [Sb]
Structural Maintenance Other Roads,Highways Minor Works,2010-09-16,5000101583,1120.31,J A Dempsey Civil Eng Ltd [Sb]
Structural Maintenance Other Roads,Highways Minor Works,2010-09-16,5000101521,508.06,Aggregate Industries  Cis [Sb]
Structural Maintenance Other Roads,Highways Minor Works,2010-09-17,5000101849,-551.0,Docklands Traffic Management Ltd
Structural Maintenance Other Roads,Highways Minor Works,2010-09-17,5000101751,551.0,Docklands Traffic Management Ltd
Structural Maintenance Other Roads,Highways Minor Works,2010-09-20,5000102158,562.66,Aggregate Industries  Cis [Sb]
Structural Maintenance Other Roads,Highways Minor Works,2010-09-20,5000102147,646.66,Aggregate Industries  Cis [Sb]
Structural Maintenance Other Roads,Highways Minor Works,2010-09-20,5000102129,701.06,Aggregate Industries  Cis [Sb]
Structural Maintenance Other Roads,Highways Minor Works,2010-09-20,5000102128,793.8,Aggregate Industries  Cis [Sb]
Structural Maintenance Other Roads,Highways Minor Works,2010-09-20,5000102126,883.0,Aggregate Industries  Cis [Sb]
Structural Maintenance Other Roads,Highways Minor Works,2010-09-20,5000102141,973.01,Aggregate Industries  Cis [Sb]
Structural Maintenance Other Roads,Highways Minor Works,2010-09-20,5000102131,998.35,Aggregate Industries  Cis [Sb]
Structural Maintenance Other Roads,Highways Minor Works,2010-09-20,5000102102,1879.74,Aggregate Industries  Cis [Sb]
Structural Maintenance Other Roads,Highways Minor Works,2010-09-22,5000102846,555.57,J A Dempsey Civil Eng Ltd [Sb]
Structural Maintenance Other Roads,Highways Minor Works,2010-09-23,5000103050,504.75,J A Dempsey Civil Eng Ltd [Sb]
Structural Maintenance Other Roads,Highways Minor Works,2010-09-23,5000103007,1223.83,Aggregate Industries  Cis [Sb]
Structural Maintenance Other Roads,Highways Minor Works,2010-09-23,5000103001,1610.35,Aggregate Industries  Cis [Sb]
Structural Maintenance Other Roads,Highways Minor Works,2010-09-28,5000103608,557.95,J A Dempsey Civil Eng Ltd [Sb]
Structural Maintenance Other Roads,Highways Minor Works,2010-09-28,5000103587,1292.84,J A Dempsey Civil Eng Ltd [Sb]
Structural Maintenance Other Roads,Highways Minor Works,2010-09-29,5105616842,1909.0,J A Dempsey Civil Eng Ltd [Sb]
Structural Maintenance Other Roads,Highways Minor Works,2010-09-29,5105616841,2184.0,J A Dempsey Civil Eng Ltd [Sb]
Structural Maintenance Other Roads,Highways Minor Works,2010-09-30,5000104149,649.57,Aggregate Industries  Cis [Sb]
Structural Maintenance Other Roads,Highways Minor Works,2010-09-30,5000104146,769.84,Aggregate Industries  Cis [Sb]
Structural Maintenance Other Roads,Highways Minor Works,2010-09-30,5000104153,897.51,Aggregate Industries  Cis [Sb]
Structural Maintenance Other Roads,Highways Minor Works,2010-10-01,5105617484,1890.0,J A Dempsey Civil Eng Ltd [Sb]
Structural Maintenance Other Roads,Highways Minor Works,2010-10-01,5105617485,1770.0,J A Dempsey Civil Eng Ltd [Sb]
Structural Maintenance Other Roads,Highways Minor Works,2010-10-01,5105617486,1430.0,J A Dempsey Civil Eng Ltd [Sb]
Structural Maintenance Other Roads,Highways Minor Works,2010-10-06,5000105054,506.72,J A Dempsey Civil Eng Ltd [Sb]
Structural Maintenance Other Roads,Highways Minor Works,2010-10-07,5000105420,629.91,Aggregate Industries  Cis [Sb]
Structural Maintenance Other Roads,Highways Minor Works,2010-10-07,5000105398,769.68,J A Dempsey Civil Eng Ltd [Sb]
Structural Maintenance Other Roads,Highways Minor Works,2010-10-07,5000105392,681.78,J A Dempsey Civil Eng Ltd [Sb]
Structural Maintenance Other Roads,Highways Minor Works,2010-10-11,5000105742,714.8,Aggregate Industries  Cis [Sb]
Structural Maintenance Other Roads,Highways Minor Works,2010-10-11,5000105736,703.57,Aggregate Industries  Cis [Sb]
Structural Maintenance Other Roads,Highways Minor Works,2010-10-11,5000105773,698.34,Aggregate Industries  Cis [Sb]
Structural Maintenance Other Roads,Highways Minor Works,2010-10-11,5000105728,564.5,Aggregate Industries  Cis [Sb]
Structural Maintenance Other Roads,Highways Minor Works,2010-10-11,5000105741,563.84,Aggregate Industries  Cis [Sb]
Structural Maintenance Other Roads,Highways Minor Works,2010-10-12,5000106058,2227.18,Aggregate Industries  Cis [Sb]
Structural Maintenance Other Roads,Highways Minor Works,2010-10-12,5000106052,1176.98,Aggregate Industries  Cis [Sb]
Structural Maintenance Other Roads,Highways Minor Works,2010-10-12,5000106086,1633.15,J A Dempsey Civil Eng Ltd [Sb]
Structural Maintenance Other Roads,Highways Minor Works,2010-10-12,5000106083,1475.9,J A Dempsey Civil Eng Ltd [Sb]
Structural Maintenance Other Roads,Highways Minor Works,2010-10-12,5000106072,677.19,J A Dempsey Civil Eng Ltd [Sb]
Structural Maintenance Other Roads,Highways Minor Works,2010-10-13,5105620056,1990.0,J A Dempsey Civil Eng Ltd [Sb]
Structural Maintenance Other Roads,Highways Minor Works,2010-10-15,5000107068,856.95,Williams Assoc [Sb] Cis
Structural Maintenance Other Roads,Highways Minor Works,2010-10-20,5000108009,912.54,J A Dempsey Civil Eng Ltd [Sb]
Structural Maintenance Other Roads,Highways Minor Works,2010-10-20,5000107931,744.58,J A Dempsey Civil Eng Ltd [Sb]
Structural Maintenance Other Roads,Highways Minor Works,2010-10-20,5000108016,592.9,J A Dempsey Civil Eng Ltd [Sb]
Structural Maintenance Other Roads,Highways Minor Works,2010-10-25,5000108550,2559.07,J A Dempsey Civil Eng Ltd [Sb]
Structural Maintenance Other Roads,Highways Minor Works,2010-10-25,5000108552,1486.41,J A Dempsey Civil Eng Ltd [Sb]
Structural Maintenance Other Roads,Highways Minor Works,2010-10-25,5000108684,985.51,J A Dempsey Civil Eng Ltd [Sb]
Structural Maintenance Other Roads,Highways Minor Works,2010-10-25,5000108678,641.03,J A Dempsey Civil Eng Ltd [Sb]
Structural Maintenance Other Roads,Highways Minor Works,2010-10-26,5000109027,1344.07,J A Dempsey Civil Eng Ltd [Sb]
Structural Maintenance Other Roads,Highways Minor Works,2010-10-26,5000109025,1340.07,J A Dempsey Civil Eng Ltd [Sb]
Structural Maintenance Other Roads,Highways Minor Works,2010-10-26,5000109028,1138.0,J A Dempsey Civil Eng Ltd [Sb]
Structural Maintenance Other Roads,Highways Minor Works,2010-10-27,5000109315,2467.11,J A Dempsey Civil Eng Ltd [Sb]
Structural Maintenance Other Roads,Highways Minor Works,2010-10-27,5000109316,1071.71,J A Dempsey Civil Eng Ltd [Sb]
Structural Maintenance Other Roads,Highways Minor Works,2010-10-27,5000109309,547.12,J A Dempsey Civil Eng Ltd [Sb]
Structural Maintenance Other Roads,Highways Minor Works,2010-10-29,5000109827,570.68,J A Dempsey Civil Eng Ltd [Sb]
Structural Maintenance Other Roads,Highways Minor Works,2010-11-03,5000110592,1984.24,J A Dempsey Civil Eng Ltd [Sb]
Structural Maintenance Other Roads,Highways Minor Works,2010-11-04,5000110666,1095.22,J A Dempsey Civil Eng Ltd [Sb]
Structural Maintenance Other Roads,Highways Minor Works,2010-11-04,5000110677,639.64,Williams Assoc [Sb] Cis
Structural Maintenance Other Roads,Highways Minor Works,2010-11-05,5000110959,1500.66,J A Dempsey Civil Eng Ltd [Sb]
Structural Maintenance Other Roads,Highways Minor Works,2010-11-05,5000110956,1034.57,J A Dempsey Civil Eng Ltd [Sb]
Structural Maintenance Other Roads,Highways Minor Works,2010-11-05,5000110963,723.15,J A Dempsey Civil Eng Ltd [Sb]
Structural Maintenance Other Roads,Highways Minor Works,2010-11-05,5000111084,665.85,J A Dempsey Civil Eng Ltd [Sb]
Structural Maintenance Other Roads,Highways Minor Works,2010-11-05,5000110960,637.65,J A Dempsey Civil Eng Ltd [Sb]
Structural Maintenance Other Roads,Highways Minor Works,2010-11-05,5000111088,520.67,J A Dempsey Civil Eng Ltd [Sb]
Structural Maintenance Other Roads,Highways Minor Works,2010-11-06,5105625301,1108.78,J A Dempsey Civil Eng Ltd [Sb]
Structural Maintenance Other Roads,Highways Minor Works,2010-11-10,5000111757,7812.33,Aggregate Industries  Cis [Sb]
Structural Maintenance Other Roads,Highways Minor Works,2010-11-10,5000111660,799.71,J A Dempsey Civil Eng Ltd [Sb]
Structural Maintenance Other Roads,Highways Minor Works,2010-11-10,5000111659,539.1,J A Dempsey Civil Eng Ltd [Sb]
Structural Maintenance Other Roads,Highways Minor Works,2010-11-11,5000111975,517.7,J A Dempsey Civil Eng Ltd [Sb]
Structural Maintenance Other Roads,Highways Minor Works,2010-11-16,5000112807,563.13,J A Dempsey Civil Eng Non Cis [Sb]
Structural Maintenance Other Roads,Highways Minor Works,2010-11-17,5000112981,644.57,J A Dempsey Civil Eng Ltd [Sb]
Structural Maintenance Other Roads,Highways Minor Works,2010-11-18,5105627909,2621.55,Aggregate Industries  Cis [Sb]
Structural Maintenance Other Roads,Highways Minor Works,2010-11-18,5000113164,707.21,Aggregate Industries  Cis [Sb]
Structural Maintenance Other Roads,Highways Minor Works,2010-11-18,5105627885,1854.93,J A Dempsey Civil Eng Ltd [Sb]
Structural Maintenance Other Roads,Highways Minor Works,2010-11-18,5105627891,753.29,J A Dempsey Civil Eng Ltd [Sb]
Structural Maintenance Other Roads,Highways Minor Works,2010-11-19,5105628186,4897.0,J A Dempsey Civil Eng Ltd [Sb]
Structural Maintenance Other Roads,Highways Minor Works,2010-11-19,5105628188,1976.0,J A Dempsey Civil Eng Ltd [Sb]
Structural Maintenance Other Roads,Highways Minor Works,2010-11-19,5105628187,1702.0,J A Dempsey Civil Eng Ltd [Sb]
Structural Maintenance Other Roads,Highways Minor Works,2010-11-26,5105629591,1854.0,J A Dempsey Civil Eng Ltd [Sb]
Structural Maintenance Other Roads,Highways Minor Works,2010-11-26,5105629593,1715.0,J A Dempsey Civil Eng Ltd [Sb]
Structural Maintenance Other Roads,Highways Minor Works,2010-11-26,5105629592,1649.0,J A Dempsey Civil Eng Ltd [Sb]
Structural Maintenance Other Roads,Highways Minor Works,2010-11-30,5105630017,1730.29,J A Dempsey Civil Eng Ltd [Sb]
Structural Maintenance Other Roads,Highways Minor Works,2010-11-30,5000115143,713.68,J A Dempsey Civil Eng Ltd [Sb]
Structural Maintenance Other Roads,Highways Minor Works,2010-12-01,5000115249,2145.86,Aggregate Industries  Cis [Sb]
Structural Maintenance Other Roads,Highways Minor Works,2010-12-01,5000115224,957.83,J A Dempsey Civil Eng Ltd [Sb]
Structural Maintenance Other Roads,Highways Minor Works,2010-12-01,5000115188,742.42,J A Dempsey Civil Eng Ltd [Sb]
Structural Maintenance Other Roads,Highways Minor Works,2010-12-06,5000115684,821.12,J A Dempsey Civil Eng Ltd [Sb]
Structural Maintenance Other Roads,Highways Minor Works,2010-12-08,5000116169,671.41,Aggregate Industries  Cis [Sb]
Structural Maintenance Other Roads,Highways Minor Works,2010-12-08,5000116057,2293.04,Fountains Environmental Ltd
Structural Maintenance Other Roads,Highways Minor Works,2010-12-08,5000116174,517.03,J A Dempsey Civil Eng Ltd [Sb]
Structural Maintenance Other Roads,Highways Minor Works,2010-12-08,5000116205,772.13,Williams Assoc [Sb] Non Cis
Structural Maintenance Other Roads,Highways Minor Works,2010-12-09,5000116250,756.8,Aggregate Industries  Cis [Sb]
Structural Maintenance Other Roads,Highways Minor Works,2010-12-09,5000116398,4769.98,Mountjoy Ltd [Sb]
Structural Maintenance Other Roads,Highways Minor Works,2010-12-13,5000116881,1236.79,Aggregate Industries  Cis [Sb]
Structural Maintenance Other Roads,Highways Minor Works,2010-12-13,5000116885,1083.97,Aggregate Industries  Cis [Sb]
Structural Maintenance Other Roads,Highways Minor Works,2010-12-15,5000117345,1177.83,Aggregate Industries  Cis [Sb]
Structural Maintenance Other Roads,Highways Minor Works,2010-12-15,5000117551,623.5,Williams Assoc [Sb] Cis
Structural Maintenance Other Roads,Highways Minor Works,2010-12-16,5000117632,611.26,J A Dempsey Civil Eng Ltd [Sb]
Structural Maintenance Other Roads,Highways Minor Works,2010-12-16,5000117715,588.19,J A Dempsey Civil Eng Ltd [Sb]
Structural Maintenance Other Roads,Highways Minor Works,2010-12-23,5000119037,1151.37,Aggregate Industries  Cis [Sb]
Structural Maintenance Other Roads,Highways Minor Works,2010-12-23,5000119121,1075.72,Aggregate Industries  Cis [Sb]
Structural Maintenance Other Roads,Highways Minor Works,2010-12-23,5000119097,797.62,Aggregate Industries  Cis [Sb]
Structural Maintenance Other Roads,Highways Minor Works,2010-12-23,5000119129,1034.84,J A Dempsey Civil Eng Ltd [Sb]
Structural Maintenance Other Roads,Highways Minor Works,2010-12-23,5000119040,519.84,J A Dempsey Civil Eng Non Cis [Sb]
Structural Maintenance Other Roads,Highways Minor Works,2011-01-05,5000119763,3440.08,J A Dempsey Civil Eng Ltd [Sb]
Structural Maintenance Other Roads,Highways Minor Works,2011-01-06,5000120115,1007.38,J A Dempsey Civil Eng Ltd [Sb]
Structural Maintenance Other Roads,Highways Minor Works,2011-01-07,5000120160,699.87,Aggregate Industries  Cis [Sb]
Structural Maintenance Other Roads,Highways Minor Works,2011-01-07,5000120174,4100.49,Aggregate Industries  Cis [Sb]
Structural Maintenance Other Roads,Highways Minor Works,2011-01-11,5000120754,538.0,Aggregate Industries  Cis [Sb]
Structural Maintenance Other Roads,Highways Minor Works,2011-01-12,5000120911,695.76,J A Dempsey Civil Eng Ltd [Sb]
Structural Maintenance Other Roads,Highways Minor Works,2011-01-12,5000120908,891.94,J A Dempsey Civil Eng Ltd [Sb]
Structural Maintenance Other Roads,Highways Minor Works,2011-01-12,5105638038,1233.69,J A Dempsey Civil Eng Ltd [Sb]
Structural Maintenance Other Roads,Highways Minor Works,2011-01-12,5105638039,1689.95,J A Dempsey Civil Eng Ltd [Sb]
Structural Maintenance Other Roads,Highways Minor Works,2011-01-12,5105638037,1783.77,J A Dempsey Civil Eng Ltd [Sb]
Structural Maintenance Other Roads,Highways Minor Works,2011-01-12,5105638040,1868.03,J A Dempsey Civil Eng Ltd [Sb]
Structural Maintenance Other Roads,Highways Minor Works,2011-01-13,5000121367,1579.87,J A Dempsey Civil Eng Ltd [Sb]
Structural Maintenance Other Roads,Highways Minor Works,2011-01-18,5000122139,-579.96,J A Dempsey Civil Eng Ltd [Sb]
Structural Maintenance Other Roads,Highways Minor Works,2011-01-18,5000121947,579.96,J A Dempsey Civil Eng Ltd [Sb]
Structural Maintenance Other Roads,Highways Minor Works,2011-01-18,5000122141,579.96,J A Dempsey Civil Eng Ltd [Sb]
Structural Maintenance Other Roads,Highways Minor Works,2011-01-18,5000122221,1375.81,J A Dempsey Civil Eng Ltd [Sb]
Structural Maintenance Other Roads,Highways Minor Works,2011-01-18,5000121921,7322.88,Aggregate Industries  Cis [Sb]
Structural Maintenance Other Roads,Highways Minor Works,2011-01-20,5000122523,702.9,J A Dempsey Civil Eng Ltd [Sb]
Structural Maintenance Other Roads,Highways Minor Works,2011-01-20,5000122518,1522.52,J A Dempsey Civil Eng Ltd [Sb]
Structural Maintenance Other Roads,Highways Minor Works,2011-01-20,5000122447,1908.83,J A Dempsey Civil Eng Ltd [Sb]
Structural Maintenance Other Roads,Highways Minor Works,2011-01-20,5000122446,3961.11,J A Dempsey Civil Eng Ltd [Sb]
Structural Maintenance Other Roads,Highways Minor Works,2011-01-21,5105640026,1770.0,J A Dempsey Civil Eng Ltd [Sb]
Structural Maintenance Other Roads,Highways Minor Works,2011-01-24,5000122961,693.84,J A Dempsey Civil Eng Ltd [Sb]
Structural Maintenance Other Roads,Highways Minor Works,2011-01-24,5000122962,4146.65,J A Dempsey Civil Eng Ltd [Sb]
Structural Maintenance Other Roads,Highways Minor Works,2011-01-27,5000123623,545.84,J A Dempsey Civil Eng Ltd [Sb]
Structural Maintenance Other Roads,Highways Minor Works,2011-01-27,5000123626,590.9,J A Dempsey Civil Eng Ltd [Sb]
Structural Maintenance Other Roads,Highways Minor Works,2011-01-27,5000123639,662.68,J A Dempsey Civil Eng Ltd [Sb]
Structural Maintenance Other Roads,Highways Minor Works,2011-01-27,5000123619,665.63,J A Dempsey Civil Eng Ltd [Sb]
Structural Maintenance Other Roads,Highways Minor Works,2011-01-27,5000123637,766.35,J A Dempsey Civil Eng Ltd [Sb]
Structural Maintenance Other Roads,Highways Minor Works,2011-01-27,5000123705,917.64,J A Dempsey Civil Eng Ltd [Sb]
Structural Maintenance Other Roads,Highways Minor Works,2011-01-27,5000123728,923.21,J A Dempsey Civil Eng Ltd [Sb]
Structural Maintenance Other Roads,Highways Minor Works,2011-01-27,5000123617,940.64,J A Dempsey Civil Eng Ltd [Sb]
Structural Maintenance Other Roads,Highways Minor Works,2011-01-27,5000123606,1530.76,J A Dempsey Civil Eng Ltd [Sb]
Structural Maintenance Other Roads,Highways Minor Works,2011-01-27,5000123604,1815.21,J A Dempsey Civil Eng Ltd [Sb]
Structural Maintenance Other Roads,Highways Minor Works,2011-01-27,5000123614,3621.72,J A Dempsey Civil Eng Ltd [Sb]
Structural Maintenance Other Roads,Highways Minor Works,2011-02-02,5000124771,623.49,J A Dempsey Civil Eng Ltd [Sb]
Structural Maintenance Other Roads,Highways Minor Works,2011-02-02,5000124769,623.84,J A Dempsey Civil Eng Ltd [Sb]
Structural Maintenance Other Roads,Highways Minor Works,2011-02-02,5000124751,783.96,J A Dempsey Civil Eng Ltd [Sb]
Structural Maintenance Other Roads,Highways Minor Works,2011-02-02,5000124768,1446.89,J A Dempsey Civil Eng Ltd [Sb]
Structural Maintenance Other Roads,Highways Minor Works,2011-02-02,5000124748,1726.44,J A Dempsey Civil Eng Ltd [Sb]
Structural Maintenance Other Roads,Highways Minor Works,2011-02-03,5000124917,502.77,J A Dempsey Civil Eng Ltd [Sb]
Structural Maintenance Other Roads,Highways Minor Works,2011-02-03,5000124840,936.86,J A Dempsey Civil Eng Ltd [Sb]
Structural Maintenance Other Roads,Highways Minor Works,2011-02-04,5105643242,1547.0,J A Dempsey Civil Eng Ltd [Sb]
Structural Maintenance Other Roads,Highways Minor Works,2011-02-04,5105643243,1717.0,J A Dempsey Civil Eng Ltd [Sb]
Structural Maintenance Other Roads,Highways Minor Works,2011-02-04,5105643241,1964.0,J A Dempsey Civil Eng Ltd [Sb]
Structural Maintenance Other Roads,Highways Minor Works,2011-02-08,5000125713,505.45,J A Dempsey Civil Eng Ltd [Sb]
Structural Maintenance Other Roads,Highways Minor Works,2011-02-08,5000125700,528.53,J A Dempsey Civil Eng Ltd [Sb]
Structural Maintenance Other Roads,Highways Minor Works,2011-02-08,5000125690,680.72,J A Dempsey Civil Eng Ltd [Sb]
Structural Maintenance Other Roads,Highways Minor Works,2011-02-08,5000125867,697.84,J A Dempsey Civil Eng Ltd [Sb]
Structural Maintenance Other Roads,Highways Minor Works,2011-02-08,5000125708,899.73,J A Dempsey Civil Eng Ltd [Sb]
Structural Maintenance Other Roads,Highways Minor Works,2011-02-08,5000125776,779.28,Aggregate Industries  Cis [Sb]
Structural Maintenance Other Roads,Highways Minor Works,2011-02-09,5000126006,975.9,J A Dempsey Civil Eng Ltd [Sb]
Structural Maintenance Other Roads,Highways Minor Works,2011-02-10,5000126227,4299.07,Mountjoy Ltd [Sb]
Structural Maintenance Other Roads,Highways Minor Works,2011-02-14,5000126771,2549.82,Aggregate Industries  Non Cis [Sb]
Structural Maintenance Other Roads,Highways Minor Works,2011-02-14,5000126795,540.77,J A Dempsey Civil Eng Ltd [Sb]
Structural Maintenance Other Roads,Highways Minor Works,2011-02-14,5000126794,693.14,J A Dempsey Civil Eng Ltd [Sb]
Structural Maintenance Other Roads,Highways Minor Works,2011-02-14,5000126787,1343.92,J A Dempsey Civil Eng Ltd [Sb]
Structural Maintenance Other Roads,Highways Minor Works,2011-02-14,5000126800,1882.87,J A Dempsey Civil Eng Ltd [Sb]
Structural Maintenance Other Roads,Highways Minor Works,2011-02-14,5000126791,2412.64,J A Dempsey Civil Eng Ltd [Sb]
Structural Maintenance Other Roads,Highways Minor Works,2011-02-15,5105645118,729.83,J A Dempsey Civil Eng Ltd [Sb]
Structural Maintenance Other Roads,Highways Minor Works,2011-02-15,5000126981,1311.61,J A Dempsey Civil Eng Ltd [Sb]
Structural Maintenance Other Roads,Highways Minor Works,2011-02-15,5000127149,1326.15,J A Dempsey Civil Eng Ltd [Sb]
Structural Maintenance Other Roads,Highways Minor Works,2011-02-15,5000127151,2003.48,J A Dempsey Civil Eng Ltd [Sb]
Structural Maintenance Other Roads,Highways Minor Works,2011-02-16,5000127454,547.36,J A Dempsey Civil Eng Ltd [Sb]
Structural Maintenance Other Roads,Highways Minor Works,2011-02-16,5000127248,737.12,J A Dempsey Civil Eng Ltd [Sb]
Structural Maintenance Other Roads,Highways Minor Works,2011-02-16,5000127250,1033.8,J A Dempsey Civil Eng Ltd [Sb]
Structural Maintenance Other Roads,Highways Minor Works,2011-02-16,5000127522,1365.33,J A Dempsey Civil Eng Ltd [Sb]
Structural Maintenance Other Roads,Highways Minor Works,2011-02-16,5000127517,1453.2,J A Dempsey Civil Eng Ltd [Sb]
Structural Maintenance Other Roads,Prop Svs Planned Mtc,2011-02-16,5000127246,1977.71,J A Dempsey Civil Eng Ltd [Sb]
Structural Maintenance Other Roads,Highways Minor Works,2011-02-16,5000127249,2066.32,J A Dempsey Civil Eng Ltd [Sb]
Structural Maintenance Other Roads,Highways Minor Works,2011-02-16,5000127247,2779.16,J A Dempsey Civil Eng Ltd [Sb]
Structural Maintenance Other Roads,Highways Minor Works,2011-02-18,5000127826,3491.55,Aggregate Industries  Cis [Sb]
Structural Maintenance Other Roads,Highways Minor Works,2011-02-21,5000128220,509.46,J A Dempsey Civil Eng Ltd [Sb]
Structural Maintenance Other Roads,Highways Minor Works,2011-02-21,5000128228,558.66,J A Dempsey Civil Eng Ltd [Sb]
Structural Maintenance Other Roads,Highways Minor Works,2011-02-21,5000128189,932.66,J A Dempsey Civil Eng Ltd [Sb]
Structural Maintenance Other Roads,Highways Minor Works,2011-02-21,5000128187,1085.05,J A Dempsey Civil Eng Ltd [Sb]
Structural Maintenance Other Roads,Highways Minor Works,2011-02-21,5000128230,1487.98,Aggregate Industries  Cis [Sb]
Structural Maintenance Other Roads,Highways Minor Works,2011-02-22,5000128404,680.59,J A Dempsey Civil Eng Ltd [Sb]
Structural Maintenance Other Roads,Highways Minor Works,2011-02-22,5000128389,708.32,J A Dempsey Civil Eng Ltd [Sb]
Structural Maintenance Other Roads,Highways Minor Works,2011-02-22,5000128417,903.95,J A Dempsey Civil Eng Ltd [Sb]
Structural Maintenance Other Roads,Highways Minor Works,2011-02-22,5000128399,1012.01,J A Dempsey Civil Eng Ltd [Sb]
Structural Maintenance Other Roads,Highways Minor Works,2011-02-22,5000128394,1221.45,J A Dempsey Civil Eng Ltd [Sb]
Structural Maintenance Other Roads,Highways Minor Works,2011-02-22,5000128396,1276.7,J A Dempsey Civil Eng Ltd [Sb]
Structural Maintenance Other Roads,Highways Minor Works,2011-02-22,5000128416,1313.08,J A Dempsey Civil Eng Ltd [Sb]
Structural Maintenance Other Roads,Highways Minor Works,2011-02-22,5000128380,3514.24,J A Dempsey Civil Eng Ltd [Sb]
Structural Maintenance Other Roads,Highways Minor Works,2011-02-23,5000128617,813.0,J A Dempsey Civil Eng Ltd [Sb]
Structural Maintenance Other Roads,Highways Minor Works,2011-02-23,5000128552,2265.45,J A Dempsey Civil Eng Ltd [Sb]
Structural Maintenance Other Roads,Highways Minor Works,2011-02-23,5105647145,2517.0,J A Dempsey Civil Eng Ltd [Sb]
Structural Maintenance Other Roads,Highways Minor Works,2011-02-23,5105647146,3366.0,J A Dempsey Civil Eng Ltd [Sb]
Structural Maintenance Other Roads,Highways Minor Works,2011-02-23,5000128698,3679.13,J A Dempsey Civil Eng Ltd [Sb]
Structural Maintenance Other Roads,Highways Minor Works,2011-02-23,5000128580,731.86,Aggregate Industries  Cis [Sb]
Structural Maintenance Other Roads,Highways Minor Works,2011-02-24,5000128785,7685.56,Mountjoy Ltd [Sb]
Structural Maintenance Other Roads,Highways Minor Works,2011-02-28,5000129239,602.06,Williams Assoc [Sb] Cis
Structural Maintenance Other Roads,Highways Minor Works,2011-02-28,5000129237,628.81,Williams Assoc [Sb] Cis
Structural Maintenance Other Roads,Highways Minor Works,2011-03-02,5000129697,648.72,J A Dempsey Civil Eng Ltd [Sb]
Structural Maintenance Other Roads,Highways Minor Works,2011-03-02,5000129700,684.76,J A Dempsey Civil Eng Ltd [Sb]
Structural Maintenance Other Roads,Highways Minor Works,2011-03-02,5000129701,1970.5,J A Dempsey Civil Eng Ltd [Sb]
Structural Maintenance Other Roads,Highways Minor Works,2011-03-02,5105649985,2095.0,J A Dempsey Civil Eng Ltd [Sb]
Structural Maintenance Other Roads,Highways Minor Works,2011-03-02,5105649986,2418.0,J A Dempsey Civil Eng Ltd [Sb]
Structural Maintenance Other Roads,Highways Minor Works,2011-03-02,5000129710,506.13,Aggregate Industries  Cis [Sb]
Structural Maintenance Other Roads,Highways Minor Works,2011-03-03,5000130230,501.5,J A Dempsey Civil Eng Ltd [Sb]
Structural Maintenance Other Roads,Highways Minor Works,2011-03-03,5000130233,750.21,J A Dempsey Civil Eng Ltd [Sb]
Structural Maintenance Other Roads,Highways Minor Works,2011-03-03,5000130035,2135.84,J A Dempsey Civil Eng Ltd [Sb]
Structural Maintenance Other Roads,Highways Minor Works,2011-03-08,5000130876,816.91,J A Dempsey Civil Eng Ltd Cis Invo
Structural Maintenance Other Roads,Highways Minor Works,2011-03-08,5000130847,589.06,Mountjoy Ltd [Sb]
Structural Maintenance Other Roads,Highways Minor Works,2011-03-08,5000130861,605.83,Mountjoy Ltd [Sb]
Structural Maintenance Other Roads,Highways Minor Works,2011-03-08,5000130996,569.33,J A Dempsey Civil Eng Ltd [Sb]
Structural Maintenance Other Roads,Highways Minor Works,2011-03-08,5000130871,865.54,J A Dempsey Civil Eng Ltd [Sb]
Structural Maintenance Other Roads,Highways Minor Works,2011-03-08,5000130998,927.42,J A Dempsey Civil Eng Ltd [Sb]
Structural Maintenance Other Roads,Highways Minor Works,2011-03-08,5000130863,1342.47,J A Dempsey Civil Eng Ltd [Sb]
Structural Maintenance Other Roads,Highways Minor Works,2011-03-08,5000130782,2129.5,J A Dempsey Civil Eng Ltd [Sb]
Structural Maintenance Other Roads,Highways Minor Works,2011-03-09,5000131302,514.59,J A Dempsey Civil Eng Ltd [Sb]
Structural Maintenance Other Roads,Highways Minor Works,2011-03-09,5000131078,523.72,J A Dempsey Civil Eng Ltd [Sb]
Structural Maintenance Other Roads,Highways Minor Works,2011-03-09,5000131074,671.67,J A Dempsey Civil Eng Ltd [Sb]
Structural Maintenance Other Roads,Highways Minor Works,2011-03-10,5000131423,524.48,J A Dempsey Civil Eng Ltd [Sb]
Structural Maintenance Other Roads,Highways Minor Works,2011-03-10,5000131445,567.69,J A Dempsey Civil Eng Ltd [Sb]
Structural Maintenance Other Roads,Highways Minor Works,2011-03-10,5000131500,798.16,J A Dempsey Civil Eng Ltd [Sb]
Structural Maintenance Other Roads,Highways Minor Works,2011-03-10,5000131495,2020.43,J A Dempsey Civil Eng Ltd [Sb]
Structural Maintenance Other Roads,Highways Minor Works,2011-03-10,5000131498,2123.16,J A Dempsey Civil Eng Ltd [Sb]
Structural Maintenance Other Roads,Highways Minor Works,2011-03-10,5105651655,2374.0,J A Dempsey Civil Eng Ltd [Sb]
Structural Maintenance Other Roads,Highways Minor Works,2011-03-10,5000131461,2900.53,J A Dempsey Civil Eng Ltd [Sb]
Structural Maintenance Other Roads,Highways Minor Works,2011-03-15,5000131798,603.26,J A Dempsey Civil Eng Ltd [Sb]
Structural Maintenance Other Roads,Highways Minor Works,2011-03-15,5000131869,697.85,J A Dempsey Civil Eng Ltd [Sb]
Structural Maintenance Other Roads,Highways Minor Works,2011-03-16,5000132282,814.37,Mountjoy Ltd [Sb]
Structural Maintenance Other Roads,Highways Minor Works,2011-03-16,5000132224,669.7,J A Dempsey Civil Eng Ltd [Sb]
Structural Maintenance Other Roads,Highways Minor Works,2011-03-16,5000132163,739.61,J A Dempsey Civil Eng Ltd [Sb]
Structural Maintenance Other Roads,Highways Minor Works,2011-03-16,5000132045,776.45,J A Dempsey Civil Eng Ltd [Sb]
Structural Maintenance Other Roads,Highways Minor Works,2011-03-17,5000132337,671.21,J A Dempsey Civil Eng Ltd [Sb]
Structural Maintenance Other Roads,Highways Minor Works,2011-03-17,5000132564,787.96,J A Dempsey Civil Eng Ltd [Sb]
Structural Maintenance Other Roads,Highways Minor Works,2011-03-17,5000132560,1057.33,J A Dempsey Civil Eng Ltd [Sb]
Structural Maintenance Other Roads,Highways Minor Works,2011-03-17,5000132338,1252.24,J A Dempsey Civil Eng Ltd [Sb]
Structural Maintenance Other Roads,Highways Minor Works,2011-03-21,5000132947,589.99,J A Dempsey Civil Eng Ltd [Sb]
Structural Maintenance Other Roads,Highways Minor Works,2011-03-21,5000132908,940.59,Aggregate Industries  Cis [Sb]
Structural Maintenance Other Roads,Highways Minor Works,2011-03-22,5000133022,1034.83,J A Dempsey Civil Eng Non Cis
Structural Maintenance Other Roads,Highways Minor Works,2011-03-22,5000133117,1946.47,J A Dempsey Civil Eng Ltd Cis Invo
Structural Maintenance Other Roads,Highways Minor Works,2011-03-22,5000133230,737.1,J A Dempsey Civil Eng Ltd [Sb]
Structural Maintenance Other Roads,Highways Minor Works,2011-03-22,5000133025,786.93,J A Dempsey Civil Eng Ltd [Sb]
Structural Maintenance Other Roads,Highways Minor Works,2011-03-22,5000133028,787.59,J A Dempsey Civil Eng Ltd [Sb]
Structural Maintenance Other Roads,Highways Minor Works,2011-03-22,5000133027,815.66,J A Dempsey Civil Eng Ltd [Sb]
Structural Maintenance Other Roads,Highways Minor Works,2011-03-23,5000133356,848.46,Mountjoy Ltd [Sb]
Structural Maintenance Other Roads,Highways Minor Works,2011-03-23,5000133450,1683.42,J A Dempsey Civil Eng Ltd [Sb]
Structural Maintenance Other Roads,Highways Minor Works,2011-03-23,5000133392,1891.05,J A Dempsey Civil Eng Ltd [Sb]
Structural Maintenance Other Roads,Highways Minor Works,2011-03-23,5105653459,2158.0,J A Dempsey Civil Eng Ltd [Sb]
Structural Maintenance Other Roads,Highways Minor Works,2011-03-23,5105653461,2337.0,J A Dempsey Civil Eng Ltd [Sb]
Structural Maintenance Other Roads,Highways Minor Works,2011-03-23,5105653460,2558.0,J A Dempsey Civil Eng Ltd [Sb]
Structural Maintenance Other Roads,Highways Minor Works,2011-03-23,5000133389,4395.26,J A Dempsey Civil Eng Ltd [Sb]
Structural Maintenance Other Roads,Highways Minor Works,2011-03-23,5000133451,681.26,Aggregate Industries  Cis [Sb]
Structural Maintenance Other Roads,Highways Minor Works,2011-03-23,5000133467,665.08,Williams Assoc [Sb] Cis
Structural Maintenance Other Roads,Highways Minor Works,2011-03-24,5000133686,606.22,J A Dempsey Civil Eng Ltd [Sb]
Structural Maintenance Other Roads,Highways Minor Works,2011-03-24,5000133680,679.48,J A Dempsey Civil Eng Ltd [Sb]
Structural Maintenance Other Roads,Highways Minor Works,2011-03-24,5000133690,1147.01,J A Dempsey Civil Eng Ltd [Sb]
Structural Maintenance Other Roads,Highways Minor Works,2011-03-24,5000133695,2655.95,J A Dempsey Civil Eng Ltd [Sb]
Structural Maintenance Other Roads,Highways Minor Works,2011-03-24,5000133615,3383.37,J A Dempsey Civil Eng Ltd [Sb]
Structural Maintenance Other Roads,Highways Minor Works,2011-03-25,5105654110,2434.0,J A Dempsey Civil Eng Ltd [Sb]
Structural Maintenance Other Roads,Highways Minor Works,2011-03-29,5000134206,-617.47,Mountjoy Ltd [Sb]
Structural Maintenance Other Roads,Highways Minor Works,2011-03-29,5000134200,617.47,Mountjoy Ltd [Sb]
Structural Maintenance Other Roads,Highways Minor Works,2011-03-30,5000134662,598.64,J A Dempsey Civil Eng Ltd Cis Invo
Structural Maintenance Other Roads,Highways Minor Works,2011-03-30,5000134556,510.8,J A Dempsey Civil Eng Ltd [Sb]
Structural Maintenance Other Roads,Highways Minor Works,2011-03-30,5000134719,616.87,J A Dempsey Civil Eng Ltd [Sb]
Structural Maintenance Other Roads,Highways Minor Works,2011-03-30,5000134609,730.08,J A Dempsey Civil Eng Ltd [Sb]
Structural Maintenance Other Roads,Highways Minor Works,2011-03-30,5000134559,897.43,J A Dempsey Civil Eng Ltd [Sb]
Structural Maintenance Other Roads,Highways Minor Works,2011-03-30,5000134550,1323.4,J A Dempsey Civil Eng Ltd [Sb]
Structural Maintenance Other Roads,Highways Minor Works,2011-03-30,5000134545,4448.9,J A Dempsey Civil Eng Ltd [Sb]
Structural Maintenance Other Roads,Highways Minor Works,2011-03-30,5000134604,716.88,Williams Assoc [Sb] Cis
Structural Maintenance Other Roads,Highways Minor Works,2011-03-30,5000134760,776.34,Williams Assoc [Sb] Cis
Structural Maintenance Other Roads,Highways Minor Works,2011-03-30,5000134534,1074.68,Williams Assoc [Sb] Cis
Structural Maintenance Other Roads,Highways Minor Works,2011-03-31,5000135232,671.74,J A Dempsey Civil Eng Ltd [Sb]
Structural Maintenance Other Roads,Highways Minor Works,2011-03-31,5000135251,672.77,J A Dempsey Civil Eng Ltd [Sb]
Structural Maintenance Other Roads,Highways Minor Works,2011-03-31,5000134892,741.77,J A Dempsey Civil Eng Ltd [Sb]
Structural Maintenance Other Roads,Highways Minor Works,2011-03-31,5000135235,962.88,J A Dempsey Civil Eng Ltd [Sb]
Structural Maintenance Other Roads,Highways Minor Works,2011-03-31,5000135115,1236.5,J A Dempsey Civil Eng Ltd [Sb]
Structural Maintenance Other Roads,Highways Minor Works,2011-03-31,5000135300,2143.65,J A Dempsey Civil Eng Ltd [Sb]
Structural Maintenance Other Roads,Highways Minor Works,2011-03-31,5000135236,2279.59,J A Dempsey Civil Eng Ltd [Sb]
Structural Maintenance Other Roads,Highways Minor Works,2011-03-31,5000135116,3538.03,J A Dempsey Civil Eng Ltd [Sb]
Structural Maintenance Other Roads,Highways Minor Works,2011-03-31,5000135111,10143.94,Aggregate Industries  Cis [Sb]
Structural Maintenance Other Roads,Highways Minor Works,2011-03-31,5000134941,1132.09,Williams Assoc [Sb] Cis
Structural Maintenance Other Roads,Highways Minor Works,2011-03-31,5000135368,1145.83,Williams Assoc [Sb] Cis
Structural Maintenance Other Roads,Highways Minor Works,2011-04-04,5000135643,897.85,Mountjoy Ltd [Sb]
Structural Maintenance Other Roads,Highways Minor Works,2011-04-05,5000135718,690.84,Mountjoy Ltd [Sb]
Structural Maintenance Other Roads,Highways Minor Works,2011-04-05,5000135729,1519.26,Williams Assoc [Sb] Cis
Structural Maintenance Other Roads,Highways Minor Works,2011-04-07,5105656914,2525.51,J A Dempsey Civil Eng Ltd [Sb]
Structural Maintenance Other Roads,Pay To Pvte Contract,2011-04-14,5000137310,1023.56,Southern Electric Contracting Ltd
Structural Maintenance Other Roads,Highways Minor Works,2011-04-14,5000137256,583.24,J A Dempsey Civil Eng Ltd [Sb]
Structural Maintenance Other Roads,Highways Minor Works,2011-04-19,5000137751,545.8,J A Dempsey Civil Eng Ltd [Sb]
Structural Maintenance Other Roads,Highways Minor Works,2011-04-26,5000138631,584.9,Williams Assoc [Sb] Non Cis
Structural Maintenance Other Roads,Highways Minor Works,2011-04-26,5000138592,542.61,J A Dempsey Civil Eng Ltd [Sb]
Structural Maintenance Other Roads,Highways Minor Works,2011-05-04,5000139526,3009.31,J A Dempsey Civil Eng Ltd [Sb]
Structural Maintenance Other Roads,Highways Minor Works,2011-05-04,5000139550,965.45,J A Dempsey Civil Eng Ltd [Sb]
Structural Maintenance Other Roads,Highways Minor Works,2011-05-04,5000139555,710.45,J A Dempsey Civil Eng Ltd [Sb]
Structural Maintenance Other Roads,Highways Minor Works,2011-05-04,5000139516,1139.22,Williams Assoc [Sb] Cis
Structural Maintenance Other Roads,Highways Minor Works,2011-05-05,5105661890,3419.66,J A Dempsey Civil Eng Ltd [Sb]
Structural Maintenance Other Roads,Highways Minor Works,2011-05-10,5000140328,517.82,J A Dempsey Civil Eng Ltd [Sb]
Structural Maintenance Other Roads,Highways Minor Works,2011-05-10,5000140403,541.53,Williams Assoc [Sb] Cis
Structural Maintenance Other Roads,Highways Minor Works,2011-05-10,5000140401,507.33,Williams Assoc [Sb] Cis
Structural Maintenance Other Roads,Highways Minor Works,2011-05-11,5105662575,2589.53,J A Dempsey Civil Eng Ltd [Sb]
Structural Maintenance Other Roads,Highways Minor Works,2011-05-11,5105662584,1870.0,J A Dempsey Civil Eng Ltd [Sb]
Structural Maintenance Other Roads,Highways Minor Works,2011-05-11,5105662575,1584.51,J A Dempsey Civil Eng Ltd [Sb]
Structural Maintenance Other Roads,Highways Minor Works,2011-05-11,5105662575,1127.84,J A Dempsey Civil Eng Ltd [Sb]
Structural Maintenance Other Roads,Highways Minor Works,2011-05-17,5000141625,1120.17,J A Dempsey Civil Eng Ltd [Sb]
Structural Maintenance Other Roads,Highways Minor Works,2011-05-17,5000141592,731.74,J A Dempsey Civil Eng Ltd [Sb]
Structural Maintenance Other Roads,Highways Minor Works,2011-05-17,5000141600,559.29,J A Dempsey Civil Eng Ltd [Sb]
Structural Maintenance Other Roads,Highways Minor Works,2011-05-17,5000141610,526.31,J A Dempsey Civil Eng Ltd [Sb]
Structural Maintenance Other Roads,Highways Minor Works,2011-05-18,5000141879,933.23,J A Dempsey Civil Eng Non Cis
Structural Maintenance Other Roads,Highways Minor Works,2011-05-18,5000141917,732.99,J A Dempsey Civil Eng Ltd [Sb]
Structural Maintenance Other Roads,Highways Minor Works,2011-05-18,5000141853,590.14,J A Dempsey Civil Eng Ltd [Sb]
Structural Maintenance Other Roads,Highways Minor Works,2011-05-23,5000142424,660.34,J A Dempsey Civil Eng Ltd [Sb]
Structural Maintenance Other Roads,Highways Minor Works,2011-05-24,5105665650,1945.04,J A Dempsey Civil Eng Ltd [Sb]
Structural Maintenance Other Roads,Highways Minor Works,2011-05-31,5000143422,1195.35,J A Dempsey Civil Eng Ltd [Sb]
Structural Maintenance Other Roads,Highways Minor Works,2011-06-03,5000143965,1357.98,J A Dempsey Civil Eng Ltd [Sb]
Structural Maintenance Other Roads,Highways Minor Works,2011-06-03,5000143968,737.52,J A Dempsey Civil Eng Ltd [Sb]
Structural Maintenance Other Roads,Highways Minor Works,2011-06-03,5000144017,641.52,J A Dempsey Civil Eng Ltd [Sb]
Structural Maintenance Other Roads,Highways Minor Works,2011-06-03,5000144013,553.05,J A Dempsey Civil Eng Ltd [Sb]
Structural Maintenance Other Roads,Highways Minor Works,2011-06-08,5000144644,832.08,Williams Assoc [Sb] Cis
Structural Maintenance Other Roads,Highways Minor Works,2011-06-09,5105668295,2179.1,J A Dempsey Civil Eng Ltd [Sb]
Structural Maintenance Other Roads,Highways Minor Works,2011-06-09,5105668295,2000.43,J A Dempsey Civil Eng Ltd [Sb]
Structural Maintenance Other Roads,Highways Minor Works,2011-06-09,5105668295,1995.92,J A Dempsey Civil Eng Ltd [Sb]
Structural Maintenance Other Roads,Highways Minor Works,2011-06-14,5000145565,21206.43,J A Dempsey Civil Eng Ltd [Sb]
Structural Maintenance Other Roads,Highways Minor Works,2011-06-14,5000145593,1207.41,J A Dempsey Civil Eng Ltd [Sb]
Structural Maintenance Other Roads,Highways Minor Works,2011-06-14,5000145581,1075.08,J A Dempsey Civil Eng Ltd [Sb]
Structural Maintenance Other Roads,Highways Minor Works,2011-06-14,5000145670,3998.8,Williams Assoc [Sb] Cis
Structural Maintenance Other Roads,Highways Minor Works,2011-06-16,5000145995,803.94,J A Dempsey Civil Eng Ltd [Sb]
Structural Maintenance Other Roads,Highways Minor Works,2011-06-20,5000146383,535.0,J A Dempsey Civil Eng Ltd [Sb]
Structural Maintenance Other Roads,Highways Minor Works,2011-06-20,5000146456,713.6,Williams Assoc [Sb] Cis
Structural Maintenance Other Roads,Pay To Pvte Contract,2011-06-21,5000146707,1127.73,J A Dempsey Civil Eng Ltd [Sb]
Structural Maintenance Other Roads,Highways Minor Works,2011-06-21,5000146701,1025.33,J A Dempsey Civil Eng Ltd [Sb]
Structural Maintenance Other Roads,Highways Minor Works,2011-06-21,5000146703,783.23,J A Dempsey Civil Eng Ltd [Sb]
Structural Maintenance Other Roads,Highways Minor Works,2011-06-22,5000146912,1031.47,Williams Assoc [Sb] Cis
Structural Maintenance Other Roads,Highways Minor Works,2011-06-27,5000147329,3788.24,Mountjoy Ltd [Sb]
Structural Maintenance Other Roads,Highways Minor Works,2011-06-27,5000147340,3838.68,J A Dempsey Civil Eng Ltd [Sb]
Structural Maintenance Other Roads,Highways Minor Works,2011-06-27,5000147332,2878.06,J A Dempsey Civil Eng Ltd [Sb]
Structural Maintenance Other Roads,Highways Minor Works,2011-06-27,5000147389,637.58,Williams Assoc [Sb] Cis
Structural Maintenance Other Roads,Highways Minor Works,2011-06-28,5000147506,1933.92,J A Dempsey Civil Eng Ltd [Sb]
Structural Maintenance Other Roads,Highways Minor Works,2011-06-28,5000147510,517.7,J A Dempsey Civil Eng Ltd [Sb]
Structural Maintenance Other Roads,Highways Minor Works,2011-06-28,5000147513,856.03,Williams Assoc [Sb] Cis
Structural Maintenance Other Roads,Highways Minor Works,2011-06-29,5105672361,3495.75,J A Dempsey Civil Eng Ltd [Sb]
Structural Maintenance Other Roads,Highways Minor Works,2011-06-29,5105672361,2023.15,J A Dempsey Civil Eng Ltd [Sb]
Structural Maintenance Other Roads,Highways Minor Works,2011-06-30,5000147940,1326.61,J A Dempsey Civil Eng Ltd [Sb]
Structural Maintenance Other Roads,Highways Minor Works,2011-06-30,5000147945,831.18,J A Dempsey Civil Eng Ltd [Sb]
Structural Maintenance Other Roads,Highways Minor Works,2011-07-04,5000148171,709.22,Ja Dempsey Civil Eng Ltd [Sb]
Structural Maintenance Other Roads,Pay To Pvte Contract,2011-07-05,5000148228,1169.44,Fountains Environmental Ltd
Structural Maintenance Other Roads,Highways Minor Works,2011-07-06,5000148416,752.01,Ja Dempsey Civil Eng Ltd [Sb]
Structural Maintenance Other Roads,Highways Minor Works,2011-07-06,5000148420,588.06,Ja Dempsey Civil Eng Ltd [Sb]
Structural Maintenance Other Roads,Highways Minor Works,2011-07-06,5000148471,2633.49,Williams Assoc [Sb] Cis
Structural Maintenance Other Roads,Highways Minor Works,2011-07-07,5000148951,848.96,Ja Dempsey Civil Eng Ltd [Sb]
Structural Maintenance Other Roads,Highways Minor Works,2011-07-07,5000148944,695.93,Ja Dempsey Civil Eng Ltd [Sb]
Structural Maintenance Other Roads,Highways Minor Works,2011-07-07,5000148788,634.38,Ja Dempsey Civil Eng Ltd [Sb]
Structural Maintenance Other Roads,Highways Minor Works,2011-07-07,5000148707,530.77,Ja Dempsey Civil Eng Ltd [Sb]
Structural Maintenance Other Roads,Highways Minor Works,2011-07-11,5000149347,2286.36,Ja Dempsey Civil Eng Ltd [Sb]
Structural Maintenance Other Roads,Highways Minor Works,2011-07-11,5000149352,1025.06,Ja Dempsey Civil Eng Ltd [Sb]
Structural Maintenance Other Roads,Highways Minor Works,2011-07-12,5105674395,2280.76,Ja Dempsey Civil Eng Ltd [Sb]
Structural Maintenance Other Roads,Highways Minor Works,2011-07-12,5105674395,2155.95,Ja Dempsey Civil Eng Ltd [Sb]
Structural Maintenance Other Roads,Highways Minor Works,2011-07-12,5105674395,2063.09,Ja Dempsey Civil Eng Ltd [Sb]
Structural Maintenance Other Roads,Highways Minor Works,2011-07-12,5000149483,1639.01,Ja Dempsey Civil Eng Ltd [Sb]
Structural Maintenance Other Roads,Highways Minor Works,2011-07-13,5000150106,708.34,Ja Dempsey Civil Eng Ltd [Sb]
Structural Maintenance Other Roads,Highways Minor Works,2011-07-13,5000149875,618.39,Ja Dempsey Civil Eng Ltd [Sb]
Structural Maintenance Other Roads,Highways Minor Works,2011-07-14,5000150177,-1034.83,J A Dempsey Civil Eng Non Cis
Structural Maintenance Other Roads,Highways Minor Works,2011-07-14,5000150175,-1946.47,J A Dempsey Civil Eng Ltd Cis Invo
Structural Maintenance Other Roads,Highways Minor Works,2011-07-19,5000151068,552.11,Ja Dempsey Civil Eng Ltd [Sb]
Structural Maintenance Other Roads,Highways Minor Works,2011-07-25,5000151557,-598.64,J A Dempsey Civil Eng Ltd Cis Invo
Structural Maintenance Other Roads,Highways Minor Works,2011-07-25,5000151555,-816.91,J A Dempsey Civil Eng Ltd Cis Invo
Structural Maintenance Other Roads,Highways Minor Works,2011-07-27,5000151912,2174.18,Ja Dempsey Civil Eng Ltd [Sb]
Structural Maintenance Other Roads,Highways Minor Works,2011-07-27,5000151870,1006.75,Ja Dempsey Civil Eng Ltd [Sb]
Structural Maintenance Other Roads,Highways Minor Works,2011-07-27,5000151851,1005.04,Ja Dempsey Civil Eng Ltd [Sb]
Structural Maintenance Other Roads,Highways Minor Works,2011-07-27,5000151913,954.99,Ja Dempsey Civil Eng Ltd [Sb]
Structural Maintenance Other Roads,Highways Minor Works,2011-07-27,5000151918,707.12,Ja Dempsey Civil Eng Ltd [Sb]
Structural Maintenance Other Roads,Highways Minor Works,2011-07-27,5000151835,591.3,Ja Dempsey Civil Eng Ltd [Sb]
Structural Maintenance Other Roads,Highways Minor Works,2011-07-29,5000152249,4462.88,Ja Dempsey Civil Eng Ltd [Sb]
Structural Maintenance Other Roads,Highways Minor Works,2011-07-29,5000152250,4110.27,Ja Dempsey Civil Eng Ltd [Sb]
Structural Maintenance Other Roads,Highways Minor Works,2011-07-29,5000152230,3040.01,Ja Dempsey Civil Eng Ltd [Sb]
Structural Maintenance Other Roads,Highways Minor Works,2011-07-29,5000152238,1402.79,Ja Dempsey Civil Eng Ltd [Sb]
Structural Maintenance Other Roads,Highways Minor Works,2011-07-29,5000152253,1200.68,Ja Dempsey Civil Eng Ltd [Sb]
Structural Maintenance Other Roads,Highways Minor Works,2011-07-29,5000152234,1193.25,Ja Dempsey Civil Eng Ltd [Sb]
Structural Maintenance Other Roads,Highways Minor Works,2011-07-29,5000152215,1052.41,Ja Dempsey Civil Eng Ltd [Sb]
Structural Maintenance Other Roads,Highways Minor Works,2011-07-29,5000152243,750.21,Ja Dempsey Civil Eng Ltd [Sb]
Structural Maintenance Other Roads,Highways Minor Works,2011-07-29,5000152211,746.2,Ja Dempsey Civil Eng Ltd [Sb]
Structural Maintenance Other Roads,Highways Minor Works,2011-07-29,5000152227,504.03,Ja Dempsey Civil Eng Ltd [Sb]
Structural Maintenance Other Roads,Highways Minor Works,2011-07-29,5000152255,2582.63,Williams Assoc [Sb] Cis
Structural Maintenance Other Roads,Highways Minor Works,2011-08-01,5000152390,1356.89,Williams Assoc [Sb] Cis
Structural Maintenance Other Roads,Highways Minor Works,2011-08-02,5105678526,4061.39,Ja Dempsey Civil Eng Ltd [Sb]
Structural Maintenance Other Roads,Highways Minor Works,2011-08-02,5105678526,1919.3,Ja Dempsey Civil Eng Ltd [Sb]
Structural Maintenance Other Roads,Highways Minor Works,2011-08-02,5000152557,1756.06,Ja Dempsey Civil Eng Ltd [Sb]
Structural Maintenance Other Roads,Highways Minor Works,2011-08-02,5105678526,1698.06,Ja Dempsey Civil Eng Ltd [Sb]
Structural Maintenance Other Roads,Highways Minor Works,2011-08-02,5000152558,650.45,Ja Dempsey Civil Eng Ltd [Sb]
Structural Maintenance Other Roads,Highways Minor Works,2011-08-02,5000152553,608.2,Ja Dempsey Civil Eng Ltd [Sb]
Structural Maintenance Other Roads,Highways Minor Works,2011-08-04,5000152880,859.52,Ja Dempsey Civil Eng Ltd [Sb]
Structural Maintenance Other Roads,Highways Minor Works,2011-08-08,5000153225,852.93,Ja Dempsey Civil Eng Ltd [Sb]
Structural Maintenance Other Roads,Highways Minor Works,2011-08-08,5000153223,726.59,Ja Dempsey Civil Eng Ltd [Sb]
Structural Maintenance Other Roads,Highways Minor Works,2011-08-09,5000153281,8571.61,Mountjoy Ltd [Sb]
Structural Maintenance Other Roads,Highways Minor Works,2011-08-09,5000153288,904.17,Ja Dempsey Civil Eng Ltd [Sb]
Structural Maintenance Other Roads,Highways Minor Works,2011-08-09,5000153274,697.1,Ja Dempsey Civil Eng Ltd [Sb]
Structural Maintenance Other Roads,Highways Minor Works,2011-08-10,5000153388,-933.23,J A Dempsey Civil Eng Non Cis
Structural Maintenance Other Roads,Highways Minor Works,2011-08-10,5000153391,933.23,Ja Dempsey Civil Eng Ltd [Sb]
Structural Maintenance Other Roads,Highways Minor Works,2011-08-10,5000153384,666.75,Ja Dempsey Civil Eng Ltd [Sb]
Structural Maintenance Other Roads,Highways Minor Works,2011-08-10,5000153375,621.12,Ja Dempsey Civil Eng Ltd [Sb]
Structural Maintenance Other Roads,Highways Minor Works,2011-08-11,5000153491,1765.59,Ja Dempsey Civil Eng Ltd [Sb]
Structural Maintenance Other Roads,Highways Minor Works,2011-08-11,5000153510,1256.44,Ja Dempsey Civil Eng Ltd [Sb]
Structural Maintenance Other Roads,Highways Minor Works,2011-08-11,5000153522,849.99,Ja Dempsey Civil Eng Ltd [Sb]
Structural Maintenance Other Roads,Highways Minor Works,2011-08-11,5000153495,741.12,Ja Dempsey Civil Eng Ltd [Sb]
Structural Maintenance Other Roads,Highways Minor Works,2011-08-11,5000153494,596.5,Ja Dempsey Civil Eng Ltd [Sb]
Structural Maintenance Other Roads,Highways Minor Works,2011-08-11,5000153732,580.66,Ja Dempsey Civil Eng Ltd [Sb]
Structural Maintenance Other Roads,Highways Minor Works,2011-08-12,5000153864,643.96,Ja Dempsey Civil Eng Ltd [Sb]
Structural Maintenance Other Roads,Highways Minor Works,2011-08-12,5000153856,580.04,Ja Dempsey Civil Eng Ltd [Sb]
Structural Maintenance Other Roads,Highways Minor Works,2011-08-12,5000153863,2000.0,Williams Assoc [Sb] Cis
Structural Maintenance Other Roads,Highways Minor Works,2011-08-13,5105680401,8590.8,Ja Dempsey Civil Eng Ltd [Sb]
Structural Maintenance Other Roads,Highways Minor Works,2011-08-17,5000154887,2797.11,Ja Dempsey Civil Eng Ltd [Sb]
Structural Maintenance Other Roads,Highways Minor Works,2011-08-17,5000154889,2063.99,Ja Dempsey Civil Eng Ltd [Sb]
Structural Maintenance Other Roads,Highways Minor Works,2011-08-17,5000154896,2055.72,Ja Dempsey Civil Eng Ltd [Sb]
Structural Maintenance Other Roads,Highways Minor Works,2011-08-17,5000154901,1915.87,Ja Dempsey Civil Eng Ltd [Sb]
Structural Maintenance Other Roads,Highways Minor Works,2011-08-17,5000154894,1895.03,Ja Dempsey Civil Eng Ltd [Sb]
Structural Maintenance Other Roads,Highways Minor Works,2011-08-17,5000154891,1712.29,Ja Dempsey Civil Eng Ltd [Sb]
Structural Maintenance Other Roads,Highways Minor Works,2011-08-17,5000154900,1702.85,Ja Dempsey Civil Eng Ltd [Sb]
Structural Maintenance Other Roads,Highways Minor Works,2011-08-17,5000154903,1357.92,Ja Dempsey Civil Eng Ltd [Sb]
Structural Maintenance Other Roads,Highways Minor Works,2011-08-17,5000154926,504.9,Ja Dempsey Civil Eng Ltd [Sb]
Structural Maintenance Other Roads,Highways Minor Works,2011-08-19,5000155452,1773.18,Ja Dempsey Civil Eng Ltd [Sb]
Structural Maintenance Other Roads,Highways Minor Works,2011-08-19,5000155460,749.02,Ja Dempsey Civil Eng Ltd [Sb]
Structural Maintenance Other Roads,Highways Minor Works,2011-08-19,5000155462,703.11,Ja Dempsey Civil Eng Ltd [Sb]
Structural Maintenance Other Roads,Highways Minor Works,2011-08-19,5000155441,561.62,Ja Dempsey Civil Eng Ltd [Sb]
Structural Maintenance Other Roads,Highways Minor Works,2011-08-22,5000155627,1652.94,Ja Dempsey Civil Eng Ltd [Sb]
Structural Maintenance Other Roads,Highways Minor Works,2011-08-23,5000155764,807.86,Ja Dempsey Civil Eng Ltd [Sb]
Structural Maintenance Other Roads,Highways Minor Works,2011-08-24,5105683443,1987.85,Ja Dempsey Civil Eng Ltd [Sb]
Structural Maintenance Other Roads,Highways Minor Works,2011-08-24,5105683443,1875.76,Ja Dempsey Civil Eng Ltd [Sb]
Structural Maintenance Other Roads,Highways Minor Works,2011-08-24,5000156048,922.68,Ja Dempsey Civil Eng Ltd [Sb]
Structural Maintenance Other Roads,Highways Minor Works,2011-08-24,5000156019,574.77,Ja Dempsey Civil Eng Ltd [Sb]
Structural Maintenance Other Roads,Pay To Pvte Contract,2011-08-30,5000156358,3000.0,C N Services
Structural Maintenance Other Roads,Pay To Pvte Contract,2011-08-30,5000156359,2000.0,C N Services
Structural Maintenance Other Roads,Highways Minor Works,2011-08-30,5000156413,2691.32,Ja Dempsey Civil Eng Ltd [Sb]
Structural Maintenance Other Roads,Highways Minor Works,2011-08-30,5000156412,1573.65,Ja Dempsey Civil Eng Ltd [Sb]
Structural Maintenance Other Roads,Highways Minor Works,2011-08-30,5000156398,954.73,Ja Dempsey Civil Eng Ltd [Sb]
Structural Maintenance Other Roads,Highways Minor Works,2011-08-30,5000156415,805.44,Ja Dempsey Civil Eng Ltd [Sb]
Structural Maintenance Other Roads,Highways Minor Works,2011-08-30,5000156400,749.65,Ja Dempsey Civil Eng Ltd [Sb]
Structural Maintenance Other Roads,Highways Minor Works,2011-08-30,5000156403,699.47,Ja Dempsey Civil Eng Ltd [Sb]
Structural Maintenance Other Roads,Highways Minor Works,2011-08-30,5000156406,694.72,Ja Dempsey Civil Eng Ltd [Sb]
Structural Maintenance Other Roads,Highways Minor Works,2011-08-30,5000156411,648.43,Ja Dempsey Civil Eng Ltd [Sb]
Structural Maintenance Other Roads,Highways Minor Works,2011-08-30,5000156366,810.84,Williams Assoc [Sb] Cis
Structural Maintenance Other Roads,Highways Minor Works,2011-09-01,5000156687,2613.8,Ja Dempsey Civil Eng Ltd [Sb]
Structural Maintenance Other Roads,Highways Minor Works,2011-09-02,5000156785,724.33,Ja Dempsey Civil Eng Ltd [Sb]
Structural Maintenance Other Roads,Highways Minor Works,2011-09-06,5000157151,774.3,Ja Dempsey Civil Eng Ltd [Sb]
Structural Maintenance Other Roads,Highways Minor Works,2011-09-06,5000157147,757.67,Ja Dempsey Civil Eng Ltd [Sb]
Structural Maintenance Other Roads,Highways Minor Works,2011-09-06,5000157090,723.17,Ja Dempsey Civil Eng Ltd [Sb]
Structural Maintenance Other Roads,Highways Minor Works,2011-09-06,5000157094,709.01,Ja Dempsey Civil Eng Ltd [Sb]
Structural Maintenance Other Roads,Highways Minor Works,2011-09-07,5000157220,735.48,Ja Dempsey Civil Eng Ltd [Sb]
Structural Maintenance Other Roads,Highways Minor Works,2011-09-07,5000157224,731.21,Ja Dempsey Civil Eng Ltd [Sb]
Structural Maintenance Other Roads,Highways Minor Works,2011-09-07,5000157254,696.7,Ja Dempsey Civil Eng Ltd [Sb]
Structural Maintenance Other Roads,Highways Minor Works,2011-09-07,5000157235,596.77,Ja Dempsey Civil Eng Ltd [Sb]
Structural Maintenance Other Roads,Highways Minor Works,2011-09-07,5000157236,556.28,Ja Dempsey Civil Eng Ltd [Sb]
Structural Maintenance Other Roads,Highways Minor Works,2011-09-13,5000158419,3301.48,J A Dempsey Civil Eng [Sb] Non Cis
Structural Maintenance Other Roads,Highways Minor Works,2011-09-13,5000158470,1046.7,Ja Dempsey Civil Eng Ltd [Sb]
Structural Maintenance Other Roads,Highways Minor Works,2011-09-13,5000158431,735.17,Ja Dempsey Civil Eng Ltd [Sb]
Structural Maintenance Other Roads,Highways Minor Works,2011-09-13,5000158408,662.73,Ja Dempsey Civil Eng Ltd [Sb]
Structural Maintenance Other Roads,Highways Minor Works,2011-09-13,5000158435,593.04,Ja Dempsey Civil Eng Ltd [Sb]
Structural Maintenance Other Roads,Highways Minor Works,2011-09-13,5000158471,574.41,Ja Dempsey Civil Eng Ltd [Sb]
Structural Maintenance Other Roads,Highways Minor Works,2011-09-14,5000158831,5339.58,Ja Dempsey Civil Eng Ltd [Sb]
Structural Maintenance Other Roads,Highways Minor Works,2011-09-14,5000158789,3951.58,Ja Dempsey Civil Eng Ltd [Sb]
Structural Maintenance Other Roads,Highways Minor Works,2011-09-14,5000158795,649.22,Ja Dempsey Civil Eng Ltd [Sb]
Structural Maintenance Other Roads,Highways Minor Works,2011-09-14,5000158813,625.1,Ja Dempsey Civil Eng Ltd [Sb]
Structural Maintenance Other Roads,Highways Minor Works,2011-09-14,5000158790,539.59,Ja Dempsey Civil Eng Ltd [Sb]
Structural Maintenance Other Roads,Highways Minor Works,2011-09-15,5000158990,2581.48,Ja Dempsey Civil Eng Ltd [Sb]
Structural Maintenance Other Roads,Highways Minor Works,2011-09-15,5000158930,2188.38,Ja Dempsey Civil Eng Ltd [Sb]
Structural Maintenance Other Roads,Highways Minor Works,2011-09-15,5000158926,661.42,Ja Dempsey Civil Eng Ltd [Sb]
Structural Maintenance Other Roads,Highways Minor Works,2011-09-20,5000159547,915.19,Ja Dempsey Civil Eng Ltd [Sb]
Structural Maintenance Other Roads,Highways Minor Works,2011-09-21,5000159720,543.84,Ja Dempsey Civil Eng Ltd [Sb]
Structural Maintenance Other Roads,Highways Minor Works,2011-09-21,5000159606,2318.7,Williams Assoc [Sb] Cis
Structural Maintenance Other Roads,Highways Minor Works,2011-09-22,5105688502,3910.22,Ja Dempsey Civil Eng Ltd [Sb]
Structural Maintenance Other Roads,Highways Minor Works,2011-09-22,5105688502,1743.74,Ja Dempsey Civil Eng Ltd [Sb]
Structural Maintenance Other Roads,Highways Minor Works,2011-09-22,5105688502,1556.68,Ja Dempsey Civil Eng Ltd [Sb]
Structural Maintenance Other Roads,Highways Minor Works,2011-09-22,5000159849,706.97,Williams Assoc [Sb] Cis
Structural Maintenance Other Roads,Highways Minor Works,2011-09-22,5000159867,-706.97,Williams Assoc [Sb] Cis
Structural Maintenance Other Roads,Highways Minor Works,2011-09-27,5000160282,3848.44,Williams Assoc [Sb] Cis
Structural Maintenance Other Roads,Highways Minor Works,2011-10-04,5000161184,1346.09,Ja Dempsey Civil Eng Ltd [Sb]
Structural Maintenance Other Roads,Highways Minor Works,2011-10-04,5000161187,750.97,Ja Dempsey Civil Eng Ltd [Sb]
Structural Maintenance Other Roads,Highways Minor Works,2011-10-05,5000161254,2591.59,Ja Dempsey Civil Eng Ltd [Sb]
Structural Maintenance Other Roads,Highways Minor Works,2011-10-05,5000161299,1462.53,Ja Dempsey Civil Eng Ltd [Sb]
Structural Maintenance Other Roads,Highways Minor Works,2011-10-05,5000161237,1653.36,Ja Dempsey Civil Eng Ltd [Sb]
Structural Maintenance Other Roads,Highways Minor Works,2011-10-10,5000162284,1120.73,Ja Dempsey Civil Eng Ltd [Sb]
Structural Maintenance Other Roads,Highways Minor Works,2011-10-10,5000162286,609.59,Ja Dempsey Civil Eng Ltd [Sb]
Structural Maintenance Other Roads,Highways Minor Works,2011-10-10,5000162288,3178.13,Ja Dempsey Civil Eng Ltd [Sb]
Structural Maintenance Other Roads,Highways Minor Works,2011-10-10,5000162279,1588.34,Ja Dempsey Civil Eng Ltd [Sb]
Structural Maintenance Other Roads,Highways Minor Works,2011-10-11,5000162404,1578.7,Ja Dempsey Civil Eng Ltd [Sb]
Structural Maintenance Other Roads,Highways Minor Works,2011-10-11,5000162557,3885.15,Ja Dempsey Civil Eng Ltd [Sb]
Structural Maintenance Other Roads,Highways Minor Works,2011-10-11,5000162560,6830.47,Ja Dempsey Civil Eng Ltd [Sb]
Structural Maintenance Other Roads,Highways Minor Works,2011-10-12,5000162794,561.37,Ja Dempsey Civil Eng Ltd [Sb]
Structural Maintenance Other Roads,Highways Minor Works,2011-10-12,5000162799,500.24,Ja Dempsey Civil Eng Ltd [Sb]
Structural Maintenance Other Roads,Highways Minor Works,2011-10-12,5000162811,597.47,Ja Dempsey Civil Eng Ltd [Sb]
Structural Maintenance Other Roads,Highways Minor Works,2011-10-12,5000162812,2215.78,Ja Dempsey Civil Eng Ltd [Sb]
Structural Maintenance Other Roads,Highways Minor Works,2011-10-12,5000162824,522.65,Ja Dempsey Civil Eng Ltd [Sb]
Structural Maintenance Other Roads,Highways Minor Works,2011-10-12,5000162815,1597.63,Ja Dempsey Civil Eng Ltd [Sb]
Structural Maintenance Other Roads,Highways Minor Works,2011-10-12,5000162854,718.37,Williams Assoc [Sb] Cis
Structural Maintenance Other Roads,Highways Minor Works,2011-10-12,5000162861,627.22,Williams Assoc [Sb] Cis
Structural Maintenance Other Roads,Highways Minor Works,2011-10-12,5000162869,977.4,Williams Assoc [Sb] Cis
Structural Maintenance Other Roads,Highways Minor Works,2011-10-13,5105692770,1695.83,Ja Dempsey Civil Eng Ltd [Sb]
Structural Maintenance Other Roads,Highways Minor Works,2011-10-13,5105692770,1732.03,Ja Dempsey Civil Eng Ltd [Sb]
Structural Maintenance Other Roads,Highways Minor Works,2011-10-13,5105692770,1807.88,Ja Dempsey Civil Eng Ltd [Sb]
Structural Maintenance Other Roads,Highways Minor Works,2011-10-13,5000162985,862.73,Ja Dempsey Civil Eng Ltd [Sb]
Structural Maintenance Other Roads,Highways Minor Works,2011-10-13,5000162974,922.86,Aggregate Industries [Sb]   Cis
Structural Maintenance Other Roads,Highways Minor Works,2011-10-24,5000163187,519.66,Ja Dempsey Civil Eng Ltd [Sb]
Structural Maintenance Other Roads,Highways Minor Works,2011-10-24,5000163210,506.56,Ja Dempsey Civil Eng Ltd [Sb]
Structural Maintenance Other Roads,Highways Minor Works,2011-10-24,5000163246,790.64,Ja Dempsey Civil Eng Ltd [Sb]
Structural Maintenance Other Roads,Highways Minor Works,2011-10-24,5000163329,749.52,Ja Dempsey Civil Eng Ltd [Sb]
Structural Maintenance Other Roads,Highways Minor Works,2011-10-24,5000163338,686.37,Ja Dempsey Civil Eng Ltd [Sb]
Structural Maintenance Other Roads,Highways Minor Works,2011-10-24,5000163352,913.82,Ja Dempsey Civil Eng Ltd [Sb]
Structural Maintenance Other Roads,Highways Minor Works,2011-10-24,5000163385,969.28,Ja Dempsey Civil Eng Ltd [Sb]
Structural Maintenance Other Roads,Highways Minor Works,2011-10-24,5000163411,650.78,Ja Dempsey Civil Eng Ltd [Sb]
Structural Maintenance Other Roads,Highways Minor Works,2011-10-24,5000163412,1032.8,Ja Dempsey Civil Eng Ltd [Sb]
Structural Maintenance Other Roads,Highways Minor Works,2011-10-24,5000163413,679.91,Ja Dempsey Civil Eng Ltd [Sb]
Structural Maintenance Other Roads,Highways Minor Works,2011-10-24,5000163415,2039.45,Ja Dempsey Civil Eng Ltd [Sb]
Structural Maintenance Other Roads,Highways Minor Works,2011-10-24,5000163419,1393.86,Ja Dempsey Civil Eng Ltd [Sb]
Structural Maintenance Other Roads,Highways Minor Works,2011-10-24,5000163429,4914.37,Ja Dempsey Civil Eng Ltd [Sb]
Structural Maintenance Other Roads,Highways Minor Works,2011-10-24,5000163430,2742.48,Ja Dempsey Civil Eng Ltd [Sb]
Structural Maintenance Other Roads,Highways Minor Works,2011-10-24,5000163431,2522.25,Ja Dempsey Civil Eng Ltd [Sb]
Structural Maintenance Other Roads,Highways Minor Works,2011-10-24,5000163207,3741.59,Ja Dempsey Civil Eng Ltd [Sb]
Structural Maintenance Other Roads,Highways Minor Works,2011-10-24,5000163328,556.78,Ja Dempsey Civil Eng Ltd [Sb]
Structural Maintenance Other Roads,Highways Minor Works,2011-10-24,5000163414,1235.44,Ja Dempsey Civil Eng Ltd [Sb]
Structural Maintenance Other Roads,Highways Minor Works,2011-10-24,5000163230,3487.31,Ja Dempsey Civil Eng Ltd [Sb]
Structural Maintenance Other Roads,Highways Minor Works,2011-10-24,5000163232,4594.3,Ja Dempsey Civil Eng Ltd [Sb]
Structural Maintenance Other Roads,Highways Minor Works,2011-10-24,5000163234,2998.22,Ja Dempsey Civil Eng Ltd [Sb]
Structural Maintenance Other Roads,Highways Minor Works,2011-10-24,5000163333,3034.27,Ja Dempsey Civil Eng Ltd [Sb]
Structural Maintenance Other Roads,Highways Minor Works,2011-10-24,5000163227,9627.55,Williams Assoc [Sb] Cis
Structural Maintenance Other Roads,Highways Minor Works,2011-10-25,5105694715,1924.37,Ja Dempsey Civil Eng Ltd [Sb]
Structural Maintenance Other Roads,Highways Minor Works,2011-10-25,5105694715,1923.84,Ja Dempsey Civil Eng Ltd [Sb]
Structural Maintenance Other Roads,Highways Minor Works,2011-10-25,5000163651,1494.29,Ja Dempsey Civil Eng Ltd [Sb]
Structural Maintenance Other Roads,Highways Minor Works,2011-10-25,5000163576,548.43,Williams Assoc [Sb] Cis
Structural Maintenance Other Roads,Highways Minor Works,2011-10-26,5105694907,1146.13,Ja Dempsey Civil Eng Ltd [Sb]
Structural Maintenance Other Roads,Highways Minor Works,2011-10-26,5000163966,1452.62,Williams Assoc [Sb] Cis
Structural Maintenance Other Roads,Highways Minor Works,2011-10-26,5000163970,910.0,Williams Assoc [Sb] Cis
Structural Maintenance Other Roads,Highways Minor Works,2011-10-27,5000164011,5474.28,Ja Dempsey Civil Eng Ltd [Sb]
Structural Maintenance Other Roads,Highways Minor Works,2011-10-27,5000164012,1681.13,Ja Dempsey Civil Eng Ltd [Sb]
Structural Maintenance Other Roads,Highways Minor Works,2011-10-27,5000164006,706.97,Williams Assoc [Sb] Cis
Structural Maintenance Other Roads,Highways Minor Works,2011-10-27,5000164027,534.76,Williams Assoc [Sb] Cis
Structural Maintenance Other Roads,Highways Minor Works,2011-10-27,5000164000,516.97,Williams Assoc [Sb] Cis
Structural Maintenance Other Roads,Highways Minor Works,2011-10-27,5000164016,25594.76,Williams Assoc [Sb] Cis
Structural Maintenance Other Roads,Highways Minor Works,2011-10-27,5000164017,9980.7,Williams Assoc [Sb] Cis
Structural Maintenance Other Roads,Highways Minor Works,2011-11-03,5105695974,3843.98,Ja Dempsey Civil Eng Ltd [Sb]
Structural Maintenance Other Roads,Highways Minor Works,2011-11-03,5105695974,1840.5,Ja Dempsey Civil Eng Ltd [Sb]
Structural Maintenance Other Roads,Highways Minor Works,2011-11-03,5000164903,2255.9,Ja Dempsey Civil Eng Ltd [Sb]
Structural Maintenance Other Roads,Highways Minor Works,2011-11-08,5000165389,1554.46,Ja Dempsey Civil Eng Ltd [Sb]
Structural Maintenance Other Roads,Highways Minor Works,2011-11-08,5000165392,1602.5,Ja Dempsey Civil Eng Ltd [Sb]
Structural Maintenance Other Roads,Highways Minor Works,2011-11-08,5000165393,1930.4,Ja Dempsey Civil Eng Ltd [Sb]
Structural Maintenance Other Roads,Highways Minor Works,2011-11-08,5000165395,652.47,Ja Dempsey Civil Eng Ltd [Sb]
Structural Maintenance Other Roads,Highways Minor Works,2011-11-08,5000165398,663.76,Ja Dempsey Civil Eng Ltd [Sb]
Structural Maintenance Other Roads,Highways Minor Works,2011-11-08,5000165446,964.34,Ja Dempsey Civil Eng Ltd [Sb]
Structural Maintenance Other Roads,Highways Minor Works,2011-11-08,5000165453,602.82,Ja Dempsey Civil Eng Ltd [Sb]
Structural Maintenance Other Roads,Highways Minor Works,2011-11-08,5000165468,1298.69,Ja Dempsey Civil Eng Ltd [Sb]
Structural Maintenance Other Roads,Highways Minor Works,2011-11-08,5000165474,522.64,Ja Dempsey Civil Eng Ltd [Sb]
Structural Maintenance Other Roads,Highways Minor Works,2011-11-08,5000165523,1041.74,Ja Dempsey Civil Eng Ltd [Sb]
Structural Maintenance Other Roads,Highways Minor Works,2011-11-08,5000165543,589.68,Ja Dempsey Civil Eng Ltd [Sb]
Structural Maintenance Other Roads,Highways Minor Works,2011-11-08,5000165570,1616.81,Ja Dempsey Civil Eng Ltd [Sb]
Structural Maintenance Other Roads,Highways Minor Works,2011-11-08,5000165415,519.52,Ja Dempsey Civil Eng Ltd [Sb]
Structural Maintenance Other Roads,Highways Minor Works,2011-11-08,5000165416,549.78,Ja Dempsey Civil Eng Ltd [Sb]
Structural Maintenance Other Roads,Highways Minor Works,2011-11-08,5000165381,680.65,Williams Assoc [Sb] Cis
Structural Maintenance Other Roads,Highways Minor Works,2011-11-09,5000165737,4610.12,Ja Dempsey Civil Eng Ltd [Sb]
Structural Maintenance Other Roads,Highways Minor Works,2011-11-09,5000165765,1783.98,Ja Dempsey Civil Eng Ltd [Sb]
Structural Maintenance Other Roads,Highways Minor Works,2011-11-09,5000165840,539.58,Ja Dempsey Civil Eng Ltd [Sb]
Structural Maintenance Other Roads,Highways Minor Works,2011-11-09,5000165852,1096.0,Ja Dempsey Civil Eng Ltd [Sb]
Structural Maintenance Other Roads,Highways Minor Works,2011-11-09,5105697258,3688.19,Ja Dempsey Civil Eng Ltd [Sb]
Structural Maintenance Other Roads,Highways Minor Works,2011-11-09,5000165842,2728.9,Ja Dempsey Civil Eng Ltd [Sb]
Structural Maintenance Other Roads,Highways Minor Works,2011-11-10,5000165921,865.56,Ja Dempsey Civil Eng Ltd [Sb]
Structural Maintenance Other Roads,Highways Minor Works,2011-11-14,5000166939,1229.0,Mountjoy Ltd [Sb]
Structural Maintenance Other Roads,Highways Minor Works,2011-11-14,5000166943,1580.0,Mountjoy Ltd [Sb]
Structural Maintenance Other Roads,Highways Minor Works,2011-11-16,5000167417,1206.05,Ja Dempsey Civil Eng Ltd [Sb]
Structural Maintenance Other Roads,Highways Minor Works,2011-11-16,5000167369,2932.2,Ja Dempsey Civil Eng Ltd [Sb]
Structural Maintenance Other Roads,Highways Minor Works,2011-11-16,5000167372,1794.13,Ja Dempsey Civil Eng Ltd [Sb]
Structural Maintenance Other Roads,Highways Minor Works,2011-11-16,5000167376,4782.01,Ja Dempsey Civil Eng Ltd [Sb]
Structural Maintenance Other Roads,Highways Minor Works,2011-11-16,5000167378,1176.64,Ja Dempsey Civil Eng Ltd [Sb]
Structural Maintenance Other Roads,Highways Minor Works,2011-11-16,5000167407,503.96,Ja Dempsey Civil Eng Ltd [Sb]
Structural Maintenance Other Roads,Highways Minor Works,2011-11-16,5000167408,539.96,Ja Dempsey Civil Eng Ltd [Sb]
Structural Maintenance Other Roads,Highways Minor Works,2011-11-16,5000167414,552.95,Ja Dempsey Civil Eng Ltd [Sb]
Structural Maintenance Other Roads,Highways Minor Works,2011-11-16,5000167415,627.18,Ja Dempsey Civil Eng Ltd [Sb]
Structural Maintenance Other Roads,Highways Minor Works,2011-11-16,5000167450,2667.37,Ja Dempsey Civil Eng Ltd [Sb]
Structural Maintenance Other Roads,Highways Minor Works,2011-11-16,5000167410,1147.25,Ja Dempsey Civil Eng Ltd [Sb]
Structural Maintenance Other Roads,Highways Minor Works,2011-11-16,5000167371,1203.95,Ja Dempsey Civil Eng Ltd [Sb]
Structural Maintenance Other Roads,Highways Minor Works,2011-11-16,5000167461,13815.3,Williams Assoc [Sb] Cis
Structural Maintenance Other Roads,Highways Minor Works,2011-11-17,5000167729,532.41,Ja Dempsey Civil Eng Ltd [Sb]
Structural Maintenance Other Roads,Highways Minor Works,2011-11-17,5105699390,893.08,Ja Dempsey Civil Eng Ltd [Sb]
Structural Maintenance Other Roads,Highways Minor Works,2011-11-18,5000167852,619.83,Ja Dempsey Civil Eng Ltd [Sb]
Structural Maintenance Other Roads,Highways Minor Works,2011-11-21,5000167926,1333.17,Ja Dempsey Civil Eng Ltd [Sb]
Structural Maintenance Other Roads,Highways Minor Works,2011-11-21,5000167936,727.35,Ja Dempsey Civil Eng Ltd [Sb]
Structural Maintenance Other Roads,Highways Minor Works,2011-11-21,5000167941,732.69,Ja Dempsey Civil Eng Ltd [Sb]
Structural Maintenance Other Roads,Highways Minor Works,2011-11-21,5000167947,536.84,Ja Dempsey Civil Eng Ltd [Sb]
Structural Maintenance Other Roads,Highways Minor Works,2011-11-21,5000167949,589.95,Ja Dempsey Civil Eng Ltd [Sb]
Structural Maintenance Other Roads,Highways Minor Works,2011-11-21,5000167953,574.29,Ja Dempsey Civil Eng Ltd [Sb]
Structural Maintenance Other Roads,Highways Minor Works,2011-11-21,5000167954,560.01,Ja Dempsey Civil Eng Ltd [Sb]
Structural Maintenance Other Roads,Highways Minor Works,2011-11-21,5000167957,505.37,Ja Dempsey Civil Eng Ltd [Sb]
Structural Maintenance Other Roads,Highways Minor Works,2011-11-21,5000167965,576.22,Ja Dempsey Civil Eng Ltd [Sb]
Structural Maintenance Other Roads,Highways Minor Works,2011-11-21,5000167974,527.88,Ja Dempsey Civil Eng Ltd [Sb]
Structural Maintenance Other Roads,Highways Minor Works,2011-11-21,5000167945,1096.86,Ja Dempsey Civil Eng Ltd [Sb]
Structural Maintenance Other Roads,Highways Minor Works,2011-11-21,5000167978,923.23,Ja Dempsey Civil Eng Ltd [Sb]
Structural Maintenance Other Roads,Highways Minor Works,2011-11-22,5000168299,21713.25,Mountjoy Ltd [Sb]
Structural Maintenance Other Roads,Highways Minor Works,2011-11-22,5000168301,30129.64,Mountjoy Ltd [Sb]
Structural Maintenance Other Roads,Highways Minor Works,2011-11-22,5000168303,17602.27,Mountjoy Ltd [Sb]
Structural Maintenance Other Roads,Highways Minor Works,2011-11-22,5000168187,684.76,Ja Dempsey Civil Eng Ltd [Sb]
Structural Maintenance Other Roads,Highways Minor Works,2011-11-22,5000168195,13032.02,Ja Dempsey Civil Eng Ltd [Sb]
Structural Maintenance Other Roads,Highways Minor Works,2011-11-22,5000168209,4766.51,Ja Dempsey Civil Eng Ltd [Sb]
Structural Maintenance Other Roads,Highways Minor Works,2011-11-22,5000168213,2066.79,Ja Dempsey Civil Eng Ltd [Sb]
Structural Maintenance Other Roads,Highways Minor Works,2011-11-22,5000168261,598.62,Ja Dempsey Civil Eng Ltd [Sb]
Structural Maintenance Other Roads,Highways Minor Works,2011-11-22,5000168271,1096.89,Ja Dempsey Civil Eng Ltd [Sb]
Structural Maintenance Other Roads,Highways Minor Works,2011-11-22,5000168272,556.2,Ja Dempsey Civil Eng Ltd [Sb]
Structural Maintenance Other Roads,Highways Minor Works,2011-11-22,5000168274,727.96,Ja Dempsey Civil Eng Ltd [Sb]
Structural Maintenance Other Roads,Highways Minor Works,2011-11-22,5000168326,918.44,Ja Dempsey Civil Eng Ltd [Sb]
Structural Maintenance Other Roads,Highways Minor Works,2011-11-22,5000168319,1836.7,Ja Dempsey Civil Eng Ltd [Sb]
Structural Maintenance Other Roads,Highways Minor Works,2011-11-24,5000168747,13738.0,Mountjoy Ltd [Sb]
Structural Maintenance Other Roads,Highways Minor Works,2011-11-28,5000169049,945.0,Ja Dempsey Civil Eng Ltd [Sb]
Structural Maintenance Other Roads,Highways Minor Works,2011-11-28,5000169021,594.28,Ja Dempsey Civil Eng Ltd [Sb]
Structural Maintenance Other Roads,Highways Minor Works,2011-12-01,5000169526,1423.19,Ja Dempsey Civil Eng Ltd [Sb]
Structural Maintenance Other Roads,Highways Minor Works,2011-12-01,5000169527,899.88,Ja Dempsey Civil Eng Ltd [Sb]
Structural Maintenance Other Roads,Highways Minor Works,2011-12-01,5000169529,880.14,Ja Dempsey Civil Eng Ltd [Sb]
Structural Maintenance Other Roads,Highways Minor Works,2011-12-01,5000169534,664.09,Ja Dempsey Civil Eng Ltd [Sb]
Structural Maintenance Other Roads,Highways Minor Works,2011-12-01,5000169556,570.73,Ja Dempsey Civil Eng Ltd [Sb]
Structural Maintenance Other Roads,Highways Minor Works,2011-12-01,5000169569,500.58,Ja Dempsey Civil Eng Ltd [Sb]
Structural Maintenance Other Roads,Highways Minor Works,2011-12-02,5000169691,1086.88,Ja Dempsey Civil Eng Ltd [Sb]
Structural Maintenance Other Roads,Highways Minor Works,2011-12-02,5000169728,1065.69,Ja Dempsey Civil Eng Ltd [Sb]
Structural Maintenance Other Roads,Highways Minor Works,2011-12-02,5000169735,678.18,Ja Dempsey Civil Eng Ltd [Sb]
Structural Maintenance Other Roads,Highways Minor Works,2011-12-02,5000169752,2260.39,Ja Dempsey Civil Eng Ltd [Sb]
Structural Maintenance Other Roads,Highways Minor Works,2011-12-02,5000169761,645.69,Ja Dempsey Civil Eng Ltd [Sb]
Structural Maintenance Other Roads,Highways Minor Works,2011-12-02,5000169746,527.77,Ja Dempsey Civil Eng Ltd [Sb]
Structural Maintenance Other Roads,Highways Minor Works,2011-12-02,5000169750,10685.22,Ja Dempsey Civil Eng Ltd [Sb]
Structural Maintenance Other Roads,Highways Minor Works,2011-12-02,5000169759,3724.33,Ja Dempsey Civil Eng Ltd [Sb]
Structural Maintenance Other Roads,Highways Minor Works,2011-12-05,5000169988,1071.71,Ja Dempsey Civil Eng Ltd [Sb]
Structural Maintenance Other Roads,Highways Minor Works,2011-12-06,5105603611,1712.67,Ja Dempsey Civil Eng Ltd [Sb]
Structural Maintenance Other Roads,Highways Minor Works,2011-12-06,5105603611,1849.42,Ja Dempsey Civil Eng Ltd [Sb]
Structural Maintenance Other Roads,Highways Minor Works,2011-12-06,5105603611,1687.46,Ja Dempsey Civil Eng Ltd [Sb]
Structural Maintenance Other Roads,Highways Minor Works Contractors,2012-01-05,5000174118,823.85,Ja Dempsey Civil Eng Ltd [Sb]
Structural Maintenance Other Roads,Highways Minor Works Contractors,2012-01-05,5000174058,761.64,Ja Dempsey Civil Eng Ltd [Sb]
Structural Maintenance Other Roads,Highways Minor Works Contractors,2012-01-05,5000174072,579.96,Ja Dempsey Civil Eng Ltd [Sb]
Structural Maintenance Other Roads,Highways Minor Works Contractors,2012-01-05,5000174123,607.99,Williams Assoc [Sb] Cis
Structural Maintenance Other Roads,Highways Minor Works Contractors,2012-01-05,5000174138,1408.23,Williams Assoc [Sb] Cis
Structural Maintenance Other Roads,Highways Minor Works Contractors,2012-01-17,5000175903,539.34,Ja Dempsey Civil Eng Ltd [Sb]
Structural Maintenance Other Roads,Highways Minor Works Contractors,2012-01-17,5000175832,10763.51,Ja Dempsey Civil Eng Ltd [Sb]
Structural Maintenance Other Roads,Highways Minor Works Contractors,2012-01-17,5000175833,970.37,Ja Dempsey Civil Eng Ltd [Sb]
Structural Maintenance Other Roads,Highways Minor Works Contractors,2012-01-17,5000175820,698.67,Ja Dempsey Civil Eng Ltd [Sb]
Structural Maintenance Other Roads,Highways Minor Works Contractors,2012-01-17,5000175836,1591.9,Ja Dempsey Civil Eng Ltd [Sb]
Structural Maintenance Other Roads,Highways Minor Works Contractors,2012-01-17,5000175839,905.56,Ja Dempsey Civil Eng Ltd [Sb]
Structural Maintenance Other Roads,Highways Minor Works Contractors,2012-01-17,5000175849,561.14,Williams Assoc [Sb] Cis
Structural Maintenance Other Roads,Highways Minor Works Contractors,2012-01-17,5000175872,981.44,Williams Assoc [Sb] Cis
Structural Maintenance Other Roads,Highways Minor Works Contractors,2012-01-17,5000175892,549.04,Williams Assoc [Sb] Cis
Structural Maintenance Other Roads,Highways Minor Works Contractors,2012-01-19,5000176400,2896.41,Ja Dempsey Civil Eng Ltd [Sb]
Structural Maintenance Other Roads,Highways Minor Works Contractors,2012-01-19,5000176398,580.25,Ja Dempsey Civil Eng Ltd [Sb]
Structural Maintenance Other Roads,Highways Minor Works Contractors,2012-01-19,5000176359,1105.52,Ja Dempsey Civil Eng Ltd [Sb]
Structural Maintenance Other Roads,Highways Minor Works Contractors,2012-01-19,5000176372,865.03,Ja Dempsey Civil Eng Ltd [Sb]
Structural Maintenance Other Roads,Highways Minor Works Contractors,2012-01-19,5000176375,665.79,Ja Dempsey Civil Eng Ltd [Sb]
Structural Maintenance Other Roads,Highways Minor Works Contractors,2012-01-19,5000176377,530.51,Ja Dempsey Civil Eng Ltd [Sb]
Structural Maintenance Other Roads,Highways Minor Works Contractors,2012-01-20,5000176446,562.05,Ja Dempsey Civil Eng Ltd [Sb]
Structural Maintenance Other Roads,Highways Minor Works Contractors,2012-01-20,5000176447,704.35,Ja Dempsey Civil Eng Ltd [Sb]
Structural Maintenance Other Roads,Highways Minor Works Contractors,2012-01-24,5000176878,8255.15,Ja Dempsey Civil Eng Ltd [Sb]
Structural Maintenance Other Roads,Highways Minor Works Contractors,2012-01-24,5000176879,4388.73,Ja Dempsey Civil Eng Ltd [Sb]
Structural Maintenance Other Roads,Highways Minor Works Contractors,2012-01-24,5000176871,1152.89,Ja Dempsey Civil Eng Ltd [Sb]
Structural Maintenance Other Roads,Highways Minor Works Contractors,2012-01-24,5000176901,1098.37,Williams Assoc [Sb] Cis
Structural Maintenance Other Roads,Highways Minor Works Contractors,2012-01-25,5000177225,598.64,Ja Dempsey Civil Eng Ltd [Sb]
Structural Maintenance Other Roads,Highways Minor Works Contractors,2012-01-25,5000177226,816.91,Ja Dempsey Civil Eng Ltd [Sb]
Structural Maintenance Other Roads,Highways Minor Works Contractors,2012-01-25,5000177235,528.38,Williams Assoc [Sb] Cis
Structural Maintenance Other Roads,Highways Minor Works Contractors,2012-01-26,5000177280,591.09,Ja Dempsey Civil Eng Ltd [Sb]
Structural Maintenance Other Roads,Highways Minor Works Contractors,2012-01-26,5000177292,1509.78,Ja Dempsey Civil Eng Ltd [Sb]
Structural Maintenance Other Roads,Highways Minor Works Contractors,2012-01-26,5000177418,708.7,Ja Dempsey Civil Eng Ltd [Sb]
Structural Maintenance Other Roads,Highways Minor Works Contractors,2012-01-26,5000177339,2705.31,Ja Dempsey Civil Eng Ltd [Sb]
Structural Maintenance Other Roads,Highways Minor Works Contractors,2012-01-26,5000177392,1145.77,Ja Dempsey Civil Eng Ltd [Sb]
Structural Maintenance Other Roads,Highways Minor Works Contractors,2012-01-26,5000177396,1303.45,Ja Dempsey Civil Eng Ltd [Sb]
Structural Maintenance Other Roads,Highways Minor Works Contractors,2012-01-26,5000177399,3709.43,Ja Dempsey Civil Eng Ltd [Sb]
Structural Maintenance Other Roads,Highways Minor Works Contractors,2012-01-26,5000177400,1946.47,Ja Dempsey Civil Eng Ltd [Sb]
Structural Maintenance Other Roads,Highways Minor Works Contractors,2012-01-26,5000177403,1034.83,Ja Dempsey Civil Eng Ltd [Sb]
Structural Maintenance Other Roads,Highways Minor Works Contractors,2012-01-31,5000177811,513.78,Ja Dempsey Civil Eng Ltd [Sb]
Structural Maintenance Other Roads,Highways Minor Works Contractors,2012-01-31,5000177732,3104.32,Mountjoy Ltd [Sb]
Structural Maintenance Other Roads,Highways Minor Works Contractors,2012-02-01,5000177963,1043.73,Ja Dempsey Civil Eng Ltd [Sb]
Structural Maintenance Other Roads,Highways Minor Works Contractors,2012-02-01,5000177965,1782.54,Ja Dempsey Civil Eng Ltd [Sb]
Structural Maintenance Other Roads,Highways Minor Works Contractors,2012-02-01,5000177966,507.23,Ja Dempsey Civil Eng Ltd [Sb]
Structural Maintenance Other Roads,Highways Minor Works Contractors,2012-02-02,5000178127,921.51,Ja Dempsey Civil Eng Ltd [Sb]
Structural Maintenance Other Roads,Highways Minor Works Contractors,2012-02-02,5000178131,968.97,Ja Dempsey Civil Eng Ltd [Sb]
Structural Maintenance Other Roads,Highways Minor Works Contractors,2012-02-02,5000178142,2185.65,Ja Dempsey Civil Eng Ltd [Sb]
Structural Maintenance Other Roads,Highways Minor Works Contractors,2012-02-02,5000178143,2789.79,Ja Dempsey Civil Eng Ltd [Sb]
Structural Maintenance Other Roads,Highways Minor Works Contractors,2012-02-02,5000178136,1687.37,Ja Dempsey Civil Eng Ltd [Sb]
Structural Maintenance Other Roads,Highways Minor Works Contractors,2012-02-02,5000178152,2353.56,Ja Dempsey Civil Eng Ltd [Sb]
Structural Maintenance Other Roads,Highways Minor Works Contractors,2012-02-02,5000178099,546.72,Ja Dempsey Civil Eng Ltd [Sb]
Structural Maintenance Other Roads,Highways Minor Works Contractors,2012-02-02,5000178070,739.02,Ja Dempsey Civil Eng Ltd [Sb]
Structural Maintenance Other Roads,Highways Minor Works Contractors,2012-02-02,5000178137,2134.0,Williams Assoc [Sb] Cis
Structural Maintenance Other Roads,Highways Minor Works Contractors,2012-02-02,5000178133,1860.0,Williams Assoc [Sb] Cis
Structural Maintenance Other Roads,Highways Minor Works Contractors,2012-02-02,5000178134,1878.08,Williams Assoc [Sb] Cis
Structural Maintenance Other Roads,Highways Minor Works Contractors,2012-02-02,5000178115,632.2,Williams Assoc [Sb] Cis
Structural Maintenance Other Roads,Highways Minor Works Contractors,2012-02-08,5000178927,1280.92,Ja Dempsey Civil Eng Ltd [Sb]
Structural Maintenance Other Roads,Highways Minor Works Contractors,2012-02-08,5000179005,691.74,Ja Dempsey Civil Eng Ltd [Sb]
Structural Maintenance Other Roads,Highways Minor Works Contractors,2012-02-08,5000178946,3010.06,Williams Assoc [Sb] Cis
Structural Maintenance Other Roads,Highways Minor Works Contractors,2012-02-10,5105615118,4926.84,Ja Dempsey Civil Eng Ltd [Sb]
Structural Maintenance Other Roads,Highways Minor Works Contractors,2012-02-10,5105615118,1669.93,Ja Dempsey Civil Eng Ltd [Sb]
Structural Maintenance Other Roads,Highways Minor Works Contractors,2012-02-10,5105615118,1811.89,Ja Dempsey Civil Eng Ltd [Sb]
Structural Maintenance Other Roads,Highways Minor Works Contractors,2012-02-10,5105615118,1557.9,Ja Dempsey Civil Eng Ltd [Sb]
Structural Maintenance Other Roads,Highways Minor Works Contractors,2012-02-10,5105615118,3948.11,Ja Dempsey Civil Eng Ltd [Sb]
Structural Maintenance Other Roads,Highways Minor Works Contractors,2012-02-10,5105615118,1745.8,Ja Dempsey Civil Eng Ltd [Sb]
Structural Maintenance Other Roads,Highways Minor Works Contractors,2012-02-10,5105615118,3635.93,Ja Dempsey Civil Eng Ltd [Sb]
Structural Maintenance Other Roads,Highways Minor Works Contractors,2012-02-13,5000180107,985.94,Ja Dempsey Civil Eng Ltd [Sb]
Structural Maintenance Other Roads,Highways Minor Works Contractors,2012-02-13,5000179979,2539.8,Ja Dempsey Civil Eng Ltd [Sb]
Structural Maintenance Other Roads,Highways Minor Works Contractors,2012-02-13,5000179986,631.5,Ja Dempsey Civil Eng Ltd [Sb]
Structural Maintenance Other Roads,Highways Minor Works Contractors,2012-02-13,5000179996,746.08,Ja Dempsey Civil Eng Ltd [Sb]
Structural Maintenance Other Roads,Highways Minor Works Contractors,2012-02-13,5000179984,650.4,Williams Assoc [Sb] Cis
Structural Maintenance Other Roads,Highways Minor Works Contractors,2012-02-14,5000180182,2590.78,Ja Dempsey Civil Eng Ltd [Sb]
Structural Maintenance Other Roads,Highways Minor Works Contractors,2012-02-14,5000180197,578.39,Ja Dempsey Civil Eng Ltd [Sb]
Structural Maintenance Other Roads,Highways Minor Works Contractors,2012-02-14,5000180175,621.52,Ja Dempsey Civil Eng Ltd [Sb]
Structural Maintenance Other Roads,Highways Minor Works Contractors,2012-02-14,5000180314,3278.79,Ja Dempsey Civil Eng Ltd [Sb]
Structural Maintenance Other Roads,Highways Minor Works Contractors,2012-02-14,5000180302,1230.7,Ja Dempsey Civil Eng Ltd [Sb]
Structural Maintenance Other Roads,Highways Minor Works Contractors,2012-02-14,5000180298,1046.71,Williams Assoc [Sb] Cis
Structural Maintenance Other Roads,Highways Minor Works Contractors,2012-02-14,5000180224,7814.36,Williams Assoc [Sb] Cis
Structural Maintenance Other Roads,Highways Minor Works Contractors,2012-02-15,5000180562,764.69,Ja Dempsey Civil Eng Ltd [Sb]
Structural Maintenance Other Roads,Highways Minor Works Contractors,2012-02-16,5000180714,1768.78,Ja Dempsey Civil Eng Ltd [Sb]
Structural Maintenance Other Roads,Highways Minor Works Contractors,2012-02-16,5000180716,3286.47,Ja Dempsey Civil Eng Ltd [Sb]
Structural Maintenance Other Roads,Highways Minor Works Contractors,2012-02-16,5000180717,2220.28,Ja Dempsey Civil Eng Ltd [Sb]
Structural Maintenance Other Roads,Payment To Private Contractors,2012-02-16,5000180820,2924.0,Spe Contracting Ltd
Structural Maintenance Other Roads,Highways Minor Works Contractors,2012-02-16,5000180708,511.27,Williams Assoc [Sb] Cis
Structural Maintenance Other Roads,Highways Minor Works Contractors,2012-02-17,5000181030,513.78,Ja Dempsey Civil Eng Ltd [Sb]
Structural Maintenance Other Roads,Highways Minor Works Contractors,2012-02-17,5000181037,981.28,Ja Dempsey Civil Eng Ltd [Sb]
Structural Maintenance Other Roads,Highways Minor Works Contractors,2012-02-20,5000181235,1352.06,Ja Dempsey Civil Eng Ltd [Sb]
Structural Maintenance Other Roads,Highways Minor Works Contractors,2012-02-20,5000181238,2706.36,Ja Dempsey Civil Eng Ltd [Sb]
Structural Maintenance Other Roads,Highways Minor Works Contractors,2012-02-20,5000181231,1364.74,Ja Dempsey Civil Eng Ltd [Sb]
Structural Maintenance Other Roads,Highways Minor Works Contractors,2012-02-20,5000181233,2218.43,Ja Dempsey Civil Eng Ltd [Sb]
Structural Maintenance Other Roads,Highways Minor Works Contractors,2012-02-20,5000181222,1552.53,Williams Assoc [Sb] Cis
Structural Maintenance Other Roads,Highways Minor Works Contractors,2012-02-21,5000181410,2036.7,Ja Dempsey Civil Eng Ltd [Sb]
Structural Maintenance Other Roads,Highways Minor Works Contractors,2012-02-21,5000181460,1192.83,Mountjoy Ltd [Sb]
Structural Maintenance Other Roads,Highways Minor Works Contractors,2012-02-21,5000181365,530.06,Williams Assoc [Sb] Cis
Structural Maintenance Other Roads,Highways Minor Works Contractors,2012-02-21,5000181413,8912.43,Williams Assoc [Sb] Cis
Structural Maintenance Other Roads,Highways Minor Works Contractors,2012-02-29,5000182536,2273.89,Aggregate Industries [Sb]   Cis
Structural Maintenance Other Roads,Highways Minor Works Contractors,2012-02-29,5000182537,2769.03,Aggregate Industries [Sb]   Cis
Structural Maintenance Other Roads,Highways Minor Works Contractors,2012-02-29,5000182538,5387.28,Aggregate Industries [Sb]   Cis
Structural Maintenance Other Roads,Highways Minor Works Contractors,2012-02-29,5000182609,1051.1,Ja Dempsey Civil Eng Ltd [Sb]
Structural Maintenance Other Roads,Highways Minor Works Contractors,2012-02-29,5000182548,556.0,Ja Dempsey Civil Eng Ltd [Sb]
Structural Maintenance Other Roads,Highways Minor Works Contractors,2012-02-29,5000182552,1079.1,Ja Dempsey Civil Eng Ltd [Sb]
Structural Maintenance Other Roads,Highways Minor Works Contractors,2012-02-29,5000182563,613.78,Ja Dempsey Civil Eng Ltd [Sb]
Structural Maintenance Other Roads,Highways Minor Works Contractors,2012-02-29,5000182564,574.72,Ja Dempsey Civil Eng Ltd [Sb]
Structural Maintenance Other Roads,Highways Minor Works Contractors,2012-02-29,5000182539,12656.08,Ja Dempsey Civil Eng Ltd [Sb]
Structural Maintenance Other Roads,Highways Minor Works Contractors,2012-02-29,5000182672,649.43,Ja Dempsey Civil Eng Ltd [Sb]
Structural Maintenance Other Roads,Highways Minor Works Contractors,2012-03-01,5000182784,915.48,Ja Dempsey Civil Eng Ltd [Sb]
Structural Maintenance Other Roads,Highways Minor Works Contractors,2012-03-05,5000183094,546.66,Ja Dempsey Civil Eng Ltd [Sb]
Structural Maintenance Other Roads,Highways Minor Works Contractors,2012-03-05,5000183071,1002.56,Ja Dempsey Civil Eng Ltd [Sb]
Structural Maintenance Other Roads,Highways Minor Works Contractors,2012-03-05,5000183075,1562.77,Ja Dempsey Civil Eng Ltd [Sb]
Structural Maintenance Other Roads,Highways Minor Works Contractors,2012-03-05,5000183085,1114.0,Ja Dempsey Civil Eng Ltd [Sb]
Structural Maintenance Other Roads,Highways Minor Works Contractors,2012-03-05,5000183102,537.1,Ja Dempsey Civil Eng Ltd [Sb]
Structural Maintenance Other Roads,Highways Minor Works Contractors,2012-03-05,5000183107,949.4,Ja Dempsey Civil Eng Ltd [Sb]
Structural Maintenance Other Roads,Highways Minor Works Contractors,2012-03-05,5000183118,546.79,Ja Dempsey Civil Eng Ltd [Sb]
Structural Maintenance Other Roads,Highways Minor Works Contractors,2012-03-07,5000183528,546.7,Ja Dempsey Civil Eng Ltd [Sb]
Structural Maintenance Other Roads,Highways Minor Works Contractors,2012-03-07,5000183607,3389.74,Ja Dempsey Civil Eng Ltd [Sb]
Structural Maintenance Other Roads,Highways Minor Works Contractors,2012-03-08,5000184102,1588.13,Ja Dempsey Civil Eng Ltd [Sb]
Structural Maintenance Other Roads,Highways Minor Works Contractors,2012-03-08,5000184100,8820.37,Ja Dempsey Civil Eng Ltd [Sb]
Structural Maintenance Other Roads,Highways Minor Works Contractors,2012-03-08,5000183860,1322.53,Ja Dempsey Civil Eng Ltd [Sb]
Structural Maintenance Other Roads,Highways Minor Works Contractors,2012-03-08,5000183866,689.15,Ja Dempsey Civil Eng Ltd [Sb]
Structural Maintenance Other Roads,Highways Minor Works Contractors,2012-03-08,5000183879,1402.83,Ja Dempsey Civil Eng Ltd [Sb]
Structural Maintenance Other Roads,Highways Minor Works Contractors,2012-03-08,5000183885,1369.19,Ja Dempsey Civil Eng Ltd [Sb]
Structural Maintenance Other Roads,Highways Minor Works Contractors,2012-03-08,5000183888,1368.64,Ja Dempsey Civil Eng Ltd [Sb]
Structural Maintenance Other Roads,Highways Minor Works Contractors,2012-03-08,5000183904,1856.35,Ja Dempsey Civil Eng Ltd [Sb]
Structural Maintenance Other Roads,Highways Minor Works Contractors,2012-03-08,5000183910,929.21,Ja Dempsey Civil Eng Ltd [Sb]
Structural Maintenance Other Roads,Highways Minor Works Contractors,2012-03-08,5000183874,500.47,Williams Assoc [Sb] Cis
Structural Maintenance Other Roads,Highways Minor Works Contractors,2012-03-08,5000183843,517.69,Williams Assoc [Sb] Cis
Structural Maintenance Other Roads,Highways Minor Works Contractors,2012-03-08,5000184101,1412.6,Williams Assoc [Sb] Cis
Structural Maintenance Other Roads,Highways Minor Works Contractors,2012-03-08,5000184001,1201.81,Williams Assoc [Sb] Cis
Structural Maintenance Other Roads,Highways Minor Works Contractors,2012-03-09,5105620581,3679.86,Ja Dempsey Civil Eng Ltd [Sb]
Structural Maintenance Other Roads,Highways Minor Works Contractors,2012-03-09,5105620581,1661.58,Ja Dempsey Civil Eng Ltd [Sb]
Structural Maintenance Other Roads,Highways Minor Works Contractors,2012-03-09,5105620581,2347.55,Ja Dempsey Civil Eng Ltd [Sb]
Structural Maintenance Other Roads,Highways Minor Works Contractors,2012-03-12,5000184829,590.27,Ja Dempsey Civil Eng Ltd [Sb]
Structural Maintenance Other Roads,Highways Minor Works Contractors,2012-03-12,5000184818,707.23,Ja Dempsey Civil Eng Ltd [Sb]
Structural Maintenance Other Roads,Highways Minor Works Contractors,2012-03-12,5000184879,1549.91,Ja Dempsey Civil Eng Ltd [Sb]
Structural Maintenance Other Roads,Highways Minor Works Contractors,2012-03-12,5000184766,761.71,Ja Dempsey Civil Eng Ltd [Sb]
Structural Maintenance Other Roads,Highways Minor Works Contractors,2012-03-12,5000184772,751.14,Ja Dempsey Civil Eng Ltd [Sb]
Structural Maintenance Other Roads,Highways Minor Works Contractors,2012-03-12,5000184775,849.05,Ja Dempsey Civil Eng Ltd [Sb]
Structural Maintenance Other Roads,Highways Minor Works Contractors,2012-03-12,5000184789,959.7,Ja Dempsey Civil Eng Ltd [Sb]
Structural Maintenance Other Roads,Highways Minor Works Contractors,2012-03-12,5000184703,508.25,Ja Dempsey Civil Eng Ltd [Sb]
Structural Maintenance Other Roads,Highways Minor Works Contractors,2012-03-12,5000184921,1484.57,Ja Dempsey Civil Eng Ltd [Sb]
Structural Maintenance Other Roads,Highways Minor Works Contractors,2012-03-12,5000184954,975.8,Ja Dempsey Civil Eng Ltd [Sb]
Structural Maintenance Other Roads,Highways Minor Works Contractors,2012-03-12,5000184956,1248.1,Ja Dempsey Civil Eng Ltd [Sb]
Structural Maintenance Other Roads,Highways Minor Works Contractors,2012-03-12,5000184958,3361.71,Ja Dempsey Civil Eng Ltd [Sb]
Structural Maintenance Other Roads,Highways Minor Works Contractors,2012-03-12,5000184959,525.47,Ja Dempsey Civil Eng Ltd [Sb]
Structural Maintenance Other Roads,Highways Minor Works Contractors,2012-03-12,5000184961,729.16,Ja Dempsey Civil Eng Ltd [Sb]
Structural Maintenance Other Roads,Highways Minor Works Contractors,2012-03-12,5000184966,1839.99,Ja Dempsey Civil Eng Ltd [Sb]
Structural Maintenance Other Roads,Highways Minor Works Contractors,2012-03-12,5000184738,506.57,Williams Assoc [Sb] Cis
Structural Maintenance Other Roads,Highways Minor Works Contractors,2012-03-13,5105621297,1804.33,Ja Dempsey Civil Eng Ltd [Sb]
Structural Maintenance Other Roads,Highways Minor Works Contractors,2012-03-13,5000185033,820.13,Ja Dempsey Civil Eng Ltd [Sb]
Structural Maintenance Other Roads,Highways Minor Works Contractors,2012-03-13,5000185221,593.68,Ja Dempsey Civil Eng Ltd [Sb]
Structural Maintenance Other Roads,Highways Minor Works Contractors,2012-03-14,5000185515,653.55,Ja Dempsey Civil Eng Ltd [Sb]
Structural Maintenance Other Roads,Highways Minor Works Contractors,2012-03-14,5000185510,562.88,Ja Dempsey Civil Eng Ltd [Sb]
Structural Maintenance Other Roads,Highways Minor Works Contractors,2012-03-14,5000185437,2002.68,Ja Dempsey Civil Eng Ltd [Sb]
Structural Maintenance Other Roads,Highways Minor Works Contractors,2012-03-14,5000185443,7438.32,Ja Dempsey Civil Eng Ltd [Sb]
Structural Maintenance Other Roads,Highways Minor Works Contractors,2012-03-14,5000185363,1601.94,Williams Assoc [Sb] Cis
Structural Maintenance Other Roads,Highways Minor Works Contractors,2012-03-14,5000185432,1150.06,Williams Assoc [Sb] Cis
Structural Maintenance Other Roads,Highways Minor Works Contractors,2012-03-14,5000185433,732.29,Williams Assoc [Sb] Cis
Structural Maintenance Other Roads,Highways Minor Works Contractors,2012-03-14,5000185434,2523.52,Williams Assoc [Sb] Cis
Structural Maintenance Other Roads,Highways Minor Works Contractors,2012-03-14,5000185429,1403.36,Williams Assoc [Sb] Cis
Structural Maintenance Other Roads,Highways Minor Works Contractors,2012-03-15,5000185662,1980.63,Aggregate Industries [Sb]   Cis
Structural Maintenance Other Roads,Highways Minor Works Contractors,2012-03-16,5000185896,993.66,Ja Dempsey Civil Eng Ltd [Sb]
Structural Maintenance Other Roads,Highways Minor Works Contractors,2012-03-16,5000185897,831.45,Ja Dempsey Civil Eng Ltd [Sb]
Structural Maintenance Other Roads,Highways Minor Works Contractors,2012-03-16,5000185837,1855.13,Ja Dempsey Civil Eng Ltd [Sb]
Structural Maintenance Other Roads,Highways Minor Works Contractors,2012-03-16,5000185840,2015.09,Ja Dempsey Civil Eng Ltd [Sb]
Structural Maintenance Other Roads,Highways Minor Works Contractors,2012-03-16,5105622325,3758.26,Ja Dempsey Civil Eng Ltd [Sb]
Structural Maintenance Other Roads,Highways Minor Works Contractors,2012-03-16,5000185843,3948.25,Williams Assoc [Sb] Cis
Structural Maintenance Other Roads,Highways Minor Works Contractors,2012-03-16,5000185900,1496.39,Williams Assoc [Sb] Cis
Structural Maintenance Other Roads,Highways Minor Works Contractors,2012-03-19,5000185960,521.77,Ja Dempsey Civil Eng Ltd [Sb]
Structural Maintenance Other Roads,Highways Minor Works Contractors,2012-03-19,5000185961,551.01,Ja Dempsey Civil Eng Ltd [Sb]
Structural Maintenance Other Roads,Highways Minor Works Contractors,2012-03-19,5000185970,1076.26,Ja Dempsey Civil Eng Ltd [Sb]
Structural Maintenance Other Roads,Highways Minor Works Contractors,2012-03-19,5000185971,3167.12,Ja Dempsey Civil Eng Ltd [Sb]
Structural Maintenance Other Roads,Highways Minor Works Contractors,2012-03-20,5000186180,663.96,Ja Dempsey Civil Eng Ltd [Sb]
Structural Maintenance Other Roads,Highways Minor Works Contractors,2012-03-20,5000186173,1012.75,Ja Dempsey Civil Eng Ltd [Sb]
Structural Maintenance Other Roads,Highways Minor Works Contractors,2012-03-20,5000186174,1132.71,Ja Dempsey Civil Eng Ltd [Sb]
Structural Maintenance Other Roads,Highways Minor Works Contractors,2012-03-20,5000186177,556.4,Ja Dempsey Civil Eng Ltd [Sb]
Structural Maintenance Other Roads,Highways Minor Works Contractors,2012-03-21,5000186537,1764.61,Ja Dempsey Civil Eng Ltd [Sb]
Structural Maintenance Other Roads,Highways Minor Works Contractors,2012-03-21,5000186545,999.93,Ja Dempsey Civil Eng Ltd [Sb]
Structural Maintenance Other Roads,Highways Minor Works Contractors,2012-03-21,5000186548,540.16,Ja Dempsey Civil Eng Ltd [Sb]
Structural Maintenance Other Roads,Highways Minor Works Contractors,2012-03-21,5000186588,699.18,Ja Dempsey Civil Eng Ltd [Sb]
Structural Maintenance Other Roads,Highways Minor Works Contractors,2012-03-21,5000186431,973.24,Ja Dempsey Civil Eng Ltd [Sb]
Structural Maintenance Other Roads,Highways Minor Works Contractors,2012-03-21,5000186458,568.86,Ja Dempsey Civil Eng Ltd [Sb]
Structural Maintenance Other Roads,Highways Minor Works Contractors,2012-03-21,5000186440,1537.13,Ja Dempsey Civil Eng Ltd [Sb]
Structural Maintenance Other Roads,Highways Minor Works Contractors,2012-03-21,5000186441,671.41,Williams Assoc [Sb] Cis
Structural Maintenance Other Roads,Highways Minor Works Contractors,2012-03-21,5000186429,2221.94,Williams Assoc [Sb] Cis
Structural Maintenance Other Roads,Payment To Private Contractors,2012-03-23,5000186851,780.0,C N Services
Structural Maintenance Other Roads,Payment To Private Contractors,2012-03-23,5000186852,670.0,C N Services
Structural Maintenance Other Roads,Highways Minor Works Contractors,2012-03-23,5000186946,968.76,Ja Dempsey Civil Eng Ltd [Sb]
Structural Maintenance Other Roads,Highways Minor Works Contractors,2012-03-26,5000187007,1143.39,Ja Dempsey Civil Eng Ltd [Sb]
Structural Maintenance Other Roads,Highways Minor Works Contractors,2012-03-26,5000187008,1937.32,Ja Dempsey Civil Eng Ltd [Sb]
Structural Maintenance Other Roads,Highways Minor Works Contractors,2012-03-26,5000187010,711.61,Ja Dempsey Civil Eng Ltd [Sb]
Structural Maintenance Other Roads,Highways Minor Works Contractors,2012-03-26,5000187013,5046.32,Ja Dempsey Civil Eng Ltd [Sb]
Structural Maintenance Other Roads,Highways Minor Works Contractors,2012-03-27,5000187238,659.09,Ja Dempsey Civil Eng Ltd [Sb]
Structural Maintenance Other Roads,Highways Minor Works Contractors,2012-03-27,5000187216,528.66,Ja Dempsey Civil Eng Ltd [Sb]
Structural Maintenance Other Roads,Highways Minor Works Contractors,2012-03-27,5000187225,1446.03,Ja Dempsey Civil Eng Ltd [Sb]
Structural Maintenance Other Roads,Highways Minor Works Contractors,2012-03-27,5000187229,1962.81,Ja Dempsey Civil Eng Ltd [Sb]
Structural Maintenance Other Roads,Highways Minor Works Contractors,2012-03-27,5000187207,502.15,Ja Dempsey Civil Eng Ltd [Sb]
Structural Maintenance Other Roads,Highways Minor Works Contractors,2012-03-27,5000187208,968.97,Ja Dempsey Civil Eng Ltd [Sb]
Structural Maintenance Other Roads,Highways Minor Works Contractors,2012-03-27,5000187231,576.99,Williams Assoc [Sb] Cis
Structural Maintenance Other Roads,Highways Minor Works Contractors,2012-03-28,5000187702,542.46,J A Dempsey Civil Eng [Sb] Non Cis
Structural Maintenance Other Roads,Highways Minor Works Contractors,2012-03-28,5000187683,4384.84,Ja Dempsey Civil Eng Ltd [Sb]
Structural Maintenance Other Roads,Highways Minor Works Contractors,2012-03-28,5000187495,1427.04,Ja Dempsey Civil Eng Ltd [Sb]
Structural Maintenance Other Roads,Highways Minor Works Contractors,2012-03-28,5000187715,1134.79,Williams Assoc [Sb] Cis
Structural Maintenance Other Roads,Highways Minor Works Contractors,2012-03-28,5000187717,1706.7,Williams Assoc [Sb] Cis
Structural Maintenance Other Roads,Highways Minor Works Contractors,2012-03-28,5000187756,1930.55,Williams Assoc [Sb] Cis
Structural Maintenance Other Roads,Highways Minor Works Contractors,2012-03-28,5000187594,1409.87,Williams Assoc [Sb] Cis
Structural Maintenance Other Roads,Highways Minor Works Contractors,2012-03-28,5000187526,971.64,Williams Assoc [Sb] Cis
Structural Maintenance Other Roads,Highways Minor Works Contractors,2012-03-29,5000188037,511.05,Ja Dempsey Civil Eng Ltd [Sb]
Structural Maintenance Other Roads,Highways Minor Works Contractors,2012-03-29,5000188000,5167.72,Ja Dempsey Civil Eng Ltd [Sb]
Structural Maintenance Other Roads,Highways Minor Works Contractors,2012-03-29,5000187844,669.87,Ja Dempsey Civil Eng Ltd [Sb]
Structural Maintenance Other Roads,Highways Minor Works Contractors,2012-03-29,5000187820,780.2,Ja Dempsey Civil Eng Ltd [Sb]
Structural Maintenance Other Roads,Highways Minor Works Contractors,2012-03-29,5000187815,1101.11,Ja Dempsey Civil Eng Ltd [Sb]
Structural Maintenance Other Roads,Highways Minor Works Contractors,2012-03-29,5105624933,1893.42,Ja Dempsey Civil Eng Ltd [Sb]
Structural Maintenance Other Roads,Highways Minor Works Contractors,2012-03-29,5000187817,564.44,Williams Assoc [Sb] Cis
Structural Maintenance Other Roads,Highways Minor Works Contractors,2012-03-30,5000188455,1534.0,Aggregate Industries [Sb]   Cis
Structural Maintenance Other Roads,Highways Minor Works Contractors,2012-03-30,5000188447,969.91,Aggregate Industries [Sb]   Cis
Structural Maintenance Other Roads,Highways Minor Works Contractors,2012-03-30,5000188506,1281.72,Aggregate Industries [Sb]   Cis
Structural Maintenance Other Roads,Highways Minor Works Contractors,2012-03-30,5105625227,1731.02,Ja Dempsey Civil Eng Ltd [Sb]
Structural Maintenance Other Roads,Highways Minor Works Contractors,2012-03-30,5000188425,737.48,Ja Dempsey Civil Eng Ltd [Sb]
Structural Maintenance Other Roads,Highways Minor Works Contractors,2012-03-30,5000188428,1316.21,Ja Dempsey Civil Eng Ltd [Sb]
Structural Maintenance Other Roads,Highways Minor Works Contractors,2012-03-30,5000188422,982.3,Ja Dempsey Civil Eng Ltd [Sb]
Structural Maintenance Other Roads,Highways Minor Works Contractors,2012-03-30,5000188400,544.49,Ja Dempsey Civil Eng Ltd [Sb]
Structural Maintenance Other Roads,Highways Minor Works Contractors,2012-03-30,5000188361,613.4,Ja Dempsey Civil Eng Ltd [Sb]
Structural Maintenance Other Roads,Highways Minor Works Contractors,2012-03-30,5000188405,957.32,Ja Dempsey Civil Eng Ltd [Sb]
Structural Maintenance Other Roads,Highways Minor Works Contractors,2012-03-30,5000188408,510.73,Ja Dempsey Civil Eng Ltd [Sb]
Structural Maintenance Other Roads,Highways Minor Works Contractors,2012-03-30,5000188337,557.37,Ja Dempsey Civil Eng Ltd [Sb]
Structural Maintenance Other Roads,Highways Minor Works Contractors,2012-03-30,5000188373,929.26,Ja Dempsey Civil Eng Ltd [Sb]
Structural Maintenance Other Roads,Highways Minor Works Contractors,2012-03-30,5000188376,526.03,Ja Dempsey Civil Eng Ltd [Sb]
Structural Maintenance Other Roads,Highways Minor Works Contractors,2012-03-30,5000188332,7108.04,Ja Dempsey Civil Eng Ltd [Sb]
Structural Maintenance Other Roads,Highways Minor Works Contractors,2012-03-30,5000188335,2263.08,Ja Dempsey Civil Eng Ltd [Sb]
Structural Maintenance Other Roads,Highways Minor Works Contractors,2012-03-30,5000188322,619.58,Ja Dempsey Civil Eng Ltd [Sb]
Structural Maintenance Other Roads,Highways Minor Works Contractors,2012-03-30,5000188323,511.98,Ja Dempsey Civil Eng Ltd [Sb]
Structural Maintenance Other Roads,Highways Minor Works Contractors,2012-03-30,5000188301,11196.1,Ja Dempsey Civil Eng Ltd [Sb]
Structural Maintenance Other Roads,Highways Minor Works Contractors,2012-03-30,5000188255,6502.56,Ja Dempsey Civil Eng Ltd [Sb]
Structural Maintenance Other Roads,Highways Minor Works Contractors,2012-03-30,5000188634,1616.39,Ja Dempsey Civil Eng Ltd [Sb]
Structural Maintenance Other Roads,Highways Minor Works Contractors,2012-03-30,5000188636,1680.13,Ja Dempsey Civil Eng Ltd [Sb]
Structural Maintenance Other Roads,Highways Minor Works Contractors,2012-03-30,5000188637,1635.07,Ja Dempsey Civil Eng Ltd [Sb]
Structural Maintenance Other Roads,Highways Minor Works Contractors,2012-03-30,5000188639,1595.86,Ja Dempsey Civil Eng Ltd [Sb]
Structural Maintenance Other Roads,Highways Minor Works Contractors,2012-03-30,5000188650,2278.95,Ja Dempsey Civil Eng Ltd [Sb]
Structural Maintenance Other Roads,Highways Minor Works Contractors,2012-03-30,5000188653,2360.8,Ja Dempsey Civil Eng Ltd [Sb]
Structural Maintenance Other Roads,Highways Minor Works Contractors,2012-03-30,5000188641,1063.9,Ja Dempsey Civil Eng Ltd [Sb]
Structural Maintenance Other Roads,Highways Minor Works Contractors,2012-03-30,5000188642,2739.4,Ja Dempsey Civil Eng Ltd [Sb]
Structural Maintenance Other Roads,Highways Minor Works Contractors,2012-03-30,5000188527,1752.82,Williams Assoc [Sb] Cis
Structural Maintenance Other Roads,Highways Minor Works Contractors,2012-03-30,5000188263,8382.45,Williams Assoc [Sb] Cis
Structural Maintenance Other Roads,Highways Minor Works Contractors,2012-03-30,5000188264,597.68,Williams Assoc [Sb] Cis
Structural Maintenance Other Roads,Highways Minor Works Contractors,2012-03-30,5000188268,2970.12,Williams Assoc [Sb] Cis
Structural Maintenance Other Roads,Highways Minor Works Contractors,2012-03-30,5000188281,951.62,Williams Assoc [Sb] Cis
Structural Maintenance Other Roads,Highways Minor Works Contractors,2012-03-30,5105625137,2254.75,Williams Assoc [Sb] Cis
Structural Maintenance Other Roads,Highways Minor Works Contractors,2012-03-30,5000188194,6095.0,Williams Assoc [Sb] Non Cis
